{"text_format":"1","workbook":"xlsx","n_sheets":26,"sheets":["جلد","معرفی تامین کننده","معرفی محصول","مشخصات مهم محصول","مشخصه های مهم فرآیند","بازرسی قطعات و فرآیند","نمودار فرآیند عملیات","سوابق کیفی","تکنولوژی و دانش مورد نیاز","ماشین آلات","ابزار تست و آزمون","خدمات آزمایشگاهی","مغایرت نقشه، قطعه مرجع،شناسنامه","مواد و قطعات","منابع انسانی مورد نیاز","بسته بندی","پیمانکاران فرعی","ظرفیت سنجی","آنالیز ریسک","بررسی امکان سنجی","خريد خدمات","ماشين آلات","قالب","جدول صورت مالی","كتابخانه ليست ها","Material"],"not_rendered":{"charts":0,"images":4,"macros":1,"external_links":1,"defined_names":130,"comments":0,"pivot_tables":0},"unopened":[],"bounds":{"document_bytes":16777216,"sheet_cells":100000,"rows_first":2000,"rows_last":500,"rows_between":2000,"halvings":0,"cell_chars":16384,"cell_head_chars":4096},"cells_cut":0,"cells_raw":0,"read":"whole","date_system":"1900"}

{"sheet":"جلد","index":0,"n_rows":29,"n_cols":11,"rows_kept":29,"cut":false,"hidden":false,"merged":[[25,1,25,9],[25,10,25,11],[3,0,3,3],[4,0,4,3],[3,4,3,7],[4,4,4,7],[3,8,3,11],[4,8,4,11],[9,1,9,9],[9,10,9,11],[12,1,12,9],[12,10,12,11],[14,1,14,9],[14,10,14,11],[24,10,24,11],[18,1,18,9],[23,1,23,9],[24,1,24,9],[21,10,21,11],[22,10,22,11],[23,10,23,11],[20,1,20,9],[21,1,21,9],[22,1,22,9],[20,10,20,11],[18,10,18,11],[19,1,19,9],[19,10,19,11],[6,10,6,11],[6,1,6,9],[5,0,5,11],[7,10,7,11],[10,10,10,11],[7,1,7,9],[11,10,11,11],[16,1,16,9],[17,1,17,9],[8,1,8,9],[8,10,8,11],[15,10,15,11],[10,1,10,9],[11,1,11,9],[15,1,15,9],[13,1,13,9],[17,10,17,11],[13,10,13,11],[16,10,16,11],[0,0,2,1],[0,2,2,9],[0,10,0,11],[1,10,1,11],[2,10,2,11],[26,1,26,9],[26,10,26,11],[28,0,31,5],[28,6,31,11],[27,0,27,11]]}
[null,null,"گزارش امکانسنجی\nلیست مستندات",null,null,null,null,null,null,null,"کد فرم : FR-06-03"]
[null,null,null,null,null,null,null,null,null,null,"شماره بازنگری : 00"]
[null,null,null,null,null,null,null,null,null,null,"صفحه 1 از ...."]
[" نام سازنده :",null,null,null," نام محصول :",null,null,null," تاریخ تهیه :"]
["  شماره فنی :",null,null,null,"شماره تست پلن : ",null,null,null," شماره نقشه :"]
[]
["ردیف","شرح",null,null,null,null,null,null,null,null,"شماره صفحه"]
[1,"لیست مستندات امکان سنجی",null,null,null,null,null,null,null,null,1]
[2,"معرفی تامین کننده"]
[3,"معرفی محصول"]
[4,"فرم مشخصات مهم محصول"]
[5,"فرم مشخصه های مهم فرآیند"]
[6,"نحوه انجام بازرسی و کنترل قطعات و فرآیند"]
[7,"نمودار فرآیند عملیات"]
[8,"لیست سوابق مشکلات فنی و صدای مشتری"]
[9,"تکنولوژی و دانش مورد نیاز"]
[10,"لیست ماشین آلات و تجهیزات فنی"]
[11,"لیست ابزار و دستگاه های تست و آزمون"]
[12,"لیست استفاده از خدمات آزمایشگاهی"]
[13,"مغایرت نقشه، قطعه مرجع و شناسنامه"]
[14,"لیست مواد و قطعات"]
[15,"منابع انسانی مورد نیاز"]
[16,"ملزومات بسته بندی / انبارش / بارگیری / حمل"]
[17,"پیمانکاران فرعی"]
[18,"ظرفیت سنجی"]
[19,"آنالیز ریسک ساخت، تولید و تامین مواد و قطعات"]
[20,"فرم بررسی امکان سنجی"]
[]
["نام و سمت تهیه کننده :",null,null,null,null,null,"نام و سمت تایید کننده :"]

{"sheet":"معرفی تامین کننده","index":1,"n_rows":26,"n_cols":11,"rows_kept":26,"cut":false,"hidden":false,"merged":[[6,1,7,11],[8,1,9,11],[10,1,11,11],[6,0,11,0],[18,0,18,11],[13,7,17,11],[13,1,16,6],[17,1,17,6],[12,0,12,11],[13,0,17,0],[25,0,28,5],[25,6,28,11],[22,7,22,11],[23,7,23,11],[24,0,24,11],[19,0,23,0],[20,1,20,6],[21,1,21,6],[22,1,22,6],[23,1,23,6],[20,7,20,11],[21,7,21,11],[19,1,19,6],[19,7,19,11],[5,0,5,11],[3,0,3,3],[3,4,3,7],[0,0,2,1],[0,2,2,9],[4,0,4,3],[4,4,4,7],[4,8,4,11],[0,10,0,11],[1,10,1,11],[2,10,2,11],[3,8,3,11]]}
[null,null,"گزارش امکانسنجی\nمعرفی تامین کننده",null,null,null,null,null,null,null,"کد فرم : FR-06-04"]
[null,null,null,null,null,null,null,null,null,null,"شماره بازنگری : 00"]
[null,null,null,null,null,null,null,null,null,null,"صفحه .... از ...."]
[" نام سازنده :",null,null,null," نام محصول :",null,null,null," تاریخ تهیه :"]
["  شماره فنی :",null,null,null,"شماره تست پلن : ",null,null,null," شماره نقشه :"]
[]
["مالکیت و مجوزهای قانونی سازنده"," مدیریت تامین کننده :"]
[]
[null," وضعیت مالکیت زمین و بنا :"]
[]
[null," شرح مجوزهای قانونی :"]
[]
[]
["موقعیت مکانی سازنده"," آدرس دقیق :",null,null,null,null,null," نقشه :"]
[]
[]
[]
[null," کد پستی :"]
[]
["دسترسی به زیرساخت ها","شرح زیرساخت",null,null,null,null,null,"وضعیت / فاصله"]
[null,"آب، برق، گاز، تلفن، اینترنت پرسرعت"]
[null,"جاده اصلی"]
[null,"فرودگاه"]
[null,"ایستگاه راه آهن"]
[]
["نام و سمت تهیه کننده :",null,null,null,null,null,"نام و سمت تایید کننده :"]

{"sheet":"معرفی محصول","index":2,"n_rows":26,"n_cols":11,"rows_kept":26,"cut":false,"hidden":false,"merged":[[24,0,24,11],[25,0,28,5],[25,6,28,11],[6,0,17,0],[6,1,17,11],[18,0,23,0],[18,1,23,11],[5,0,5,11],[4,0,4,3],[4,4,4,7],[4,8,4,11],[0,0,2,1],[0,2,2,9],[0,10,0,11],[1,10,1,11],[2,10,2,11],[3,0,3,3],[3,4,3,7],[3,8,3,11]]}
[null,null,"گزارش امکانسنجی\nمعرفی محصول",null,null,null,null,null,null,null,"کد فرم : FR-06-05"]
[null,null,null,null,null,null,null,null,null,null,"شماره بازنگری : 00"]
[null,null,null,null,null,null,null,null,null,null,"صفحه .... از ...."]
[" نام سازنده :",null,null,null," نام محصول :",null,null,null," تاریخ تهیه :"]
["  شماره فنی :",null,null,null,"شماره تست پلن : ",null,null,null," شماره نقشه :"]
[]
["تصویر محصول"]
[]
[]
[]
[]
[]
[]
[]
[]
[]
[]
[]
["معرفی محصول"]
[]
[]
[]
[]
[]
[]
["نام و سمت تهیه کننده :",null,null,null,null,null,"نام و سمت تایید کننده :"]

{"sheet":"مشخصات مهم محصول","index":3,"n_rows":25,"n_cols":13,"rows_kept":25,"cut":false,"hidden":false,"merged":[[17,7,17,10],[18,7,18,10],[19,7,19,10],[20,7,20,10],[21,7,21,10],[12,7,12,10],[13,7,13,10],[14,7,14,10],[15,7,15,10],[16,7,16,10],[7,7,7,10],[8,7,8,10],[9,7,9,10],[10,7,10,10],[11,7,11,10],[3,0,3,4],[4,0,4,4],[3,5,3,9],[4,5,4,9],[6,1,6,4],[6,5,6,6],[6,7,6,10],[6,11,6,13],[5,0,5,13],[3,10,3,13],[4,10,4,13],[21,1,21,4],[21,5,21,6],[21,11,21,13],[17,1,17,4],[17,5,17,6],[17,11,17,13],[18,1,18,4],[18,5,18,6],[18,11,18,13],[15,1,15,4],[15,5,15,6],[15,11,15,13],[22,1,22,4],[22,5,22,6],[22,11,22,13],[19,11,19,13],[20,1,20,4],[20,5,20,6],[20,11,20,13],[22,7,22,10],[7,1,7,4],[7,5,7,6],[7,11,7,13],[19,1,19,4],[19,5,19,6],[8,1,8,4],[8,5,8,6],[8,11,8,13],[9,1,9,4],[9,5,9,6],[9,11,9,13],[11,1,11,4],[11,5,11,6],[16,1,16,4],[16,5,16,6],[16,11,16,13],[23,0,23,13],[24,0,27,5],[24,6,27,13],[10,1,10,4],[10,5,10,6],[10,11,10,13],[11,11,11,13],[12,1,12,4],[12,5,12,6],[12,11,12,13],[13,1,13,4],[13,5,13,6],[13,11,13,13],[14,1,14,4],[14,5,14,6],[14,11,14,13],[0,0,2,1],[0,2,2,11],[0,12,0,13],[1,12,1,13],[2,12,2,13]]}
[null,null,"گزارش امکانسنجی\nفرم مشخصات مهم محصول",null,null,null,null,null,null,null,null,null,"کد فرم : FR-06-06"]
[null,null,null,null,null,null,null,null,null,null,null,null,"شماره بازنگری : 00"]
[null,null,null,null,null,null,null,null,null,null,null,null,"صفحه .... از ...."]
[" نام سازنده :",null,null,null,null," نام محصول :",null,null,null,null," تاریخ تهیه :"]
["  شماره فنی :",null,null,null,null,"شماره تست پلن : ",null,null,null,null," شماره نقشه :"]
[]
["ردیف","نام مشخصه",null,null,null,"درجه اهمیت",null,"دلیل اهمیت نیازمندی / مشخصه",null,null,null,"مرتبط با OP"]
[]
[]
[]
[]
[]
[]
[]
[]
[]
[]
[]
[]
[]
[]
[]
[]
[]
["نام و سمت تهیه کننده :",null,null,null,null,null,"نام و سمت تایید کننده :"]

{"sheet":"مشخصه های مهم فرآیند","index":4,"n_rows":25,"n_cols":13,"rows_kept":25,"cut":false,"hidden":false,"merged":[[19,1,19,6],[19,7,19,8],[19,9,19,13],[20,1,20,6],[20,7,20,8],[20,9,20,13],[23,0,23,13],[24,0,27,5],[24,6,27,13],[21,1,21,6],[21,7,21,8],[21,9,21,13],[22,1,22,6],[22,7,22,8],[22,9,22,13],[18,1,18,6],[18,7,18,8],[18,9,18,13],[15,1,15,6],[15,7,15,8],[15,9,15,13],[16,1,16,6],[16,7,16,8],[16,9,16,13],[17,1,17,6],[17,7,17,8],[17,9,17,13],[13,1,13,6],[13,7,13,8],[13,9,13,13],[14,1,14,6],[14,7,14,8],[14,9,14,13],[11,1,11,6],[11,7,11,8],[11,9,11,13],[12,1,12,6],[12,7,12,8],[12,9,12,13],[9,1,9,6],[9,7,9,8],[9,9,9,13],[10,1,10,6],[10,7,10,8],[10,9,10,13],[7,1,7,6],[7,9,7,13],[7,7,7,8],[8,1,8,6],[8,7,8,8],[8,9,8,13],[5,0,5,13],[6,7,6,8],[6,1,6,6],[6,9,6,13],[0,0,2,1],[0,2,2,11],[0,12,0,13],[1,12,1,13],[2,12,2,13],[3,0,3,4],[3,5,3,9],[3,10,3,13],[4,0,4,4],[4,5,4,9],[4,10,4,13]]}
[null,null,"گزارش امکانسنجی\nفرم مشخصه های مهم فرآیند",null,null,null,null,null,null,null,null,null,"کد فرم : FR-06-07"]
[null,null,null,null,null,null,null,null,null,null,null,null,"شماره بازنگری : 00"]
[null,null,null,null,null,null,null,null,null,null,null,null,"صفحه .... از ...."]
[" نام سازنده :",null,null,null,null," نام محصول :",null,null,null,null," تاریخ تهیه :"]
["  شماره فنی :",null,null,null,null,"شماره تست پلن : ",null,null,null,null," شماره نقشه :"]
[]
["ردیف","نام مشخصه",null,null,null,null,null,"میزان اهمیت",null,"دلیل اهمیت مشخصه"]
[]
[]
[]
[]
[]
[]
[]
[]
[]
[]
[]
[]
[]
[]
[]
[]
[]
["نام و سمت تهیه کننده :",null,null,null,null,null,"نام و سمت تایید کننده :"]

{"sheet":"بازرسی قطعات و فرآیند","index":5,"n_rows":25,"n_cols":13,"rows_kept":25,"cut":false,"hidden":false,"merged":[[19,12,19,13],[20,12,20,13],[17,12,17,13],[18,12,18,13],[15,10,15,11],[15,12,15,13],[16,10,16,11],[16,12,16,13],[11,10,11,11],[11,12,11,13],[12,5,12,9],[12,10,12,11],[12,12,12,13],[9,10,9,11],[9,12,9,13],[10,5,10,9],[10,10,10,11],[10,12,10,13],[23,0,23,13],[24,0,27,5],[24,6,27,13],[21,1,21,4],[22,1,22,4],[21,5,21,9],[21,10,21,11],[21,12,21,13],[22,5,22,9],[22,10,22,11],[22,12,22,13],[17,1,17,4],[18,1,18,4],[17,5,17,9],[17,10,17,11],[18,5,18,9],[18,10,18,11],[19,1,19,4],[20,1,20,4],[19,5,19,9],[19,10,19,11],[20,5,20,9],[20,10,20,11],[13,10,13,11],[13,12,13,13],[14,5,14,9],[14,10,14,11],[14,12,14,13],[15,1,15,4],[16,1,16,4],[15,5,15,9],[16,5,16,9],[11,1,11,4],[12,1,12,4],[13,1,13,4],[14,1,14,4],[13,5,13,9],[9,1,9,4],[10,1,10,4],[9,5,9,9],[11,5,11,9],[7,1,7,4],[8,1,8,4],[8,5,8,9],[8,10,8,11],[8,12,8,13],[6,5,6,9],[4,0,4,4],[4,5,4,9],[5,0,5,13],[6,1,6,4],[6,10,6,11],[6,12,6,13],[7,5,7,9],[7,10,7,11],[7,12,7,13],[3,0,3,4],[3,5,3,9],[3,10,3,13],[4,10,4,13],[0,0,2,1],[0,2,2,11],[0,12,0,13],[1,12,1,13],[2,12,2,13]]}
[null,null,"گزارش امکانسنجی\nفرم نحوه انجام بازرسی و کنترل قطعات و فرآیند",null,null,null,null,null,null,null,null,null,"کد فرم : FR-06-08"]
[null,null,null,null,null,null,null,null,null,null,null,null,"شماره بازنگری : 00"]
[null,null,null,null,null,null,null,null,null,null,null,null,"صفحه .... از ...."]
[" نام سازنده :",null,null,null,null," نام محصول :",null,null,null,null," تاریخ تهیه :"]
["  شماره فنی :",null,null,null,null,"شماره تست پلن : ",null,null,null,null," شماره نقشه :"]
[]
["ردیف","پارامترهای فرآیند / محصول",null,null,null,"محدوده پذیرش",null,null,null,null,"مسئول کنترل",null,"ابزار کنترلی"]
[]
[]
[]
[]
[]
[]
[]
[]
[]
[]
[]
[]
[]
[]
[]
[]
[]
["نام و سمت تهیه کننده :",null,null,null,null,null,"نام و سمت تایید کننده :"]

{"sheet":"نمودار فرآیند عملیات","index":6,"n_rows":25,"n_cols":13,"rows_kept":25,"cut":false,"hidden":false,"merged":[[23,0,23,13],[24,0,27,5],[24,6,27,13],[5,0,5,13],[4,0,4,4],[4,5,4,9],[4,10,4,13],[6,0,6,13],[7,0,22,13],[3,0,3,4],[3,5,3,9],[3,10,3,13],[0,0,2,1],[0,2,2,11],[0,12,0,13],[1,12,1,13],[2,12,2,13]]}
[null,null,"گزارش امکانسنجی\nنمودار فرآیند عملیات",null,null,null,null,null,null,null,null,null,"کد فرم : FR-06-09"]
[null,null,null,null,null,null,null,null,null,null,null,null,"شماره بازنگری : 00"]
[null,null,null,null,null,null,null,null,null,null,null,null,"صفحه .... از ...."]
[" نام سازنده :",null,null,null,null," نام محصول :",null,null,null,null," تاریخ تهیه :"]
["  شماره فنی :",null,null,null,null,"شماره تست پلن : ",null,null,null,null," شماره نقشه :"]
[]
["OPC"]
[]
[]
[]
[]
[]
[]
[]
[]
[]
[]
[]
[]
[]
[]
[]
[]
[]
["نام و سمت تهیه کننده :",null,null,null,null,null,"نام و سمت تایید کننده :"]

{"sheet":"سوابق کیفی","index":7,"n_rows":25,"n_cols":18,"rows_kept":25,"cut":false,"hidden":false,"merged":[[19,1,19,3],[20,1,20,3],[21,1,21,3],[13,1,13,3],[14,1,14,3],[15,1,15,3],[17,1,17,3],[18,1,18,3],[18,4,18,6],[18,9,18,10],[18,11,18,14],[6,1,6,3],[7,1,7,3],[8,1,8,3],[9,1,9,3],[17,4,17,6],[13,4,13,6],[11,4,11,6],[6,4,6,6],[8,4,8,6],[10,4,10,6],[16,1,16,3],[11,1,11,3],[12,1,12,3],[14,4,14,6],[14,9,14,10],[14,11,14,14],[17,9,17,10],[17,11,17,14],[11,9,11,10],[11,11,11,14],[12,4,12,6],[12,9,12,10],[12,11,12,14],[6,9,6,10],[6,11,6,14],[7,4,7,6],[7,9,7,10],[7,11,7,14],[8,9,8,10],[8,11,8,14],[9,4,9,6],[9,9,9,10],[9,11,9,14],[19,9,19,10],[19,11,19,14],[20,9,20,10],[20,11,20,14],[12,17,12,18],[13,9,13,10],[13,11,13,14],[10,11,10,14],[19,17,19,18],[20,17,20,18],[17,17,17,18],[18,17,18,18],[23,0,23,18],[24,0,27,7],[24,8,27,18],[21,17,21,18],[22,17,22,18],[21,4,21,6],[21,9,21,10],[21,11,21,14],[22,4,22,6],[22,9,22,10],[22,11,22,14],[22,1,22,3],[7,17,7,18],[8,17,8,18],[19,4,19,6],[20,4,20,6],[15,17,15,18],[16,17,16,18],[15,4,15,6],[15,9,15,10],[15,11,15,14],[16,4,16,6],[16,9,16,10],[16,11,16,14],[13,17,13,18],[14,17,14,18],[11,17,11,18],[10,9,10,10],[9,17,9,18],[10,17,10,18],[10,1,10,3],[5,0,5,18],[0,0,2,1],[0,17,0,18],[1,17,1,18],[2,17,2,18],[3,0,3,6],[3,7,3,13],[3,14,3,18],[4,0,4,6],[4,7,4,13],[4,14,4,18],[0,2,2,16],[6,17,6,18]]}
[null,null,"گزارش امکانسنجی\nلیست سوابق مشکلات فنی و صدای مشتری",null,null,null,null,null,null,null,null,null,null,null,null,null,null,"کد فرم : FR-06-10"]
[null,null,null,null,null,null,null,null,null,null,null,null,null,null,null,null,null,"شماره بازنگری : 00"]
[null,null,null,null,null,null,null,null,null,null,null,null,null,null,null,null,null,"صفحه .... از ...."]
[" نام سازنده :",null,null,null,null,null,null," نام محصول :",null,null,null,null,null,null," تاریخ تهیه :"]
["  شماره فنی :",null,null,null,null,null,null,"شماره تست پلن : ",null,null,null,null,null,null," شماره نقشه :"]
[]
["ردیف","نام قطعه",null,null,"شرح مغایرت / ایراد",null,null,"مرحله OPC","تاریخ گزارش","منبع گزارش",null,"خلاصه سوابق اقدام اصلاحی و پیشگیرانه جهت رفع",null,null,null,"تاریخ اقدام","تاریخ اثربخشی","شماره\nاقدام اصلاحی"]
[]
[]
[]
[]
[]
[]
[]
[]
[]
[]
[]
[]
[]
[]
[]
[]
[]
["نام و سمت تهیه کننده :",null,null,null,null,null,null,null,"نام و سمت تایید کننده :"]

{"sheet":"تکنولوژی و دانش مورد نیاز","index":8,"n_rows":25,"n_cols":13,"rows_kept":25,"cut":false,"hidden":false,"merged":[[3,0,3,4],[3,5,3,9],[3,10,3,13],[4,0,4,4],[4,5,4,9],[4,10,4,13],[21,5,21,7],[21,8,21,10],[22,5,22,7],[22,8,22,10],[9,5,9,7],[9,8,9,10],[10,5,10,7],[10,8,10,10],[12,5,12,7],[12,8,12,10],[20,5,20,7],[20,8,20,10],[23,0,23,13],[6,5,6,7],[6,8,6,10],[21,1,21,4],[21,11,21,13],[22,1,22,4],[22,11,22,13],[19,1,19,4],[19,11,19,13],[20,1,20,4],[8,5,8,7],[8,8,8,10],[20,11,20,13],[19,5,19,7],[19,8,19,10],[17,1,17,4],[17,11,17,13],[18,1,18,4],[18,11,18,13],[17,5,17,7],[17,8,17,10],[18,5,18,7],[18,8,18,10],[15,1,15,4],[15,11,15,13],[16,1,16,4],[16,11,16,13],[15,5,15,7],[15,8,15,10],[16,5,16,7],[16,8,16,10],[13,11,13,13],[14,1,14,4],[14,11,14,13],[11,1,11,4],[11,11,11,13],[12,1,12,4],[12,11,12,13],[11,5,11,7],[11,8,11,10],[13,5,13,7],[13,8,13,10],[14,5,14,7],[14,8,14,10],[0,0,2,1],[0,2,2,11],[0,12,0,13],[1,12,1,13],[2,12,2,13],[24,0,27,6],[24,7,27,13],[5,0,5,13],[6,1,6,4],[6,11,6,13],[9,1,9,4],[9,11,9,13],[10,1,10,4],[10,11,10,13],[7,1,7,4],[7,11,7,13],[8,1,8,4],[8,11,8,13],[7,5,7,7],[7,8,7,10],[13,1,13,4]]}
[null,null,"گزارش امکانسنجی\nلیست تکنولوژی و دانش مورد نیاز",null,null,null,null,null,null,null,null,null,"کد فرم : FR-06-11"]
[null,null,null,null,null,null,null,null,null,null,null,null,"شماره بازنگری : 00"]
[null,null,null,null,null,null,null,null,null,null,null,null,"صفحه .... از ...."]
[" نام سازنده :",null,null,null,null," نام محصول :",null,null,null,null," تاریخ تهیه :"]
["  شماره فنی :",null,null,null,null,"شماره تست پلن : ",null,null,null,null," شماره نقشه :"]
[]
["ردیف","نام فرآیند / عملیات",null,null,null,"تکنولوژی / دانش لازم",null,null,"تکنولوژی / دانش موجود",null,null,"توضیحات"]
[]
[]
[]
[]
[]
[]
[]
[]
[]
[]
[]
[]
[]
[]
[]
[]
[]
["نام و سمت تهیه کننده :",null,null,null,null,null,null,"نام و سمت تایید کننده :"]

{"sheet":"ماشین آلات","index":9,"n_rows":24,"n_cols":13,"rows_kept":24,"cut":false,"hidden":false,"merged":[[6,0,7,0],[6,1,7,4],[6,5,7,5],[6,6,7,7],[5,0,5,13],[6,8,7,8],[6,9,6,10],[6,11,7,11],[6,12,7,13],[0,0,2,1],[0,2,2,11],[0,12,0,13],[1,12,1,13],[2,12,2,13],[3,0,3,3],[3,4,3,8],[3,10,3,13],[4,0,4,3],[4,4,4,8],[4,10,4,13],[22,0,22,13],[23,0,26,5],[23,6,26,13],[8,1,8,4],[20,1,20,4],[9,1,9,4],[8,12,8,13],[8,6,8,7],[9,6,9,7],[9,12,9,13],[11,1,11,4],[10,12,10,13],[10,1,10,4],[10,6,10,7],[11,6,11,7],[11,12,11,13],[13,1,13,4],[12,12,12,13],[12,1,12,4],[12,6,12,7],[13,6,13,7],[13,12,13,13],[15,1,15,4],[14,12,14,13],[14,1,14,4],[14,6,14,7],[15,6,15,7],[15,12,15,13],[17,1,17,4],[16,12,16,13],[16,1,16,4],[16,6,16,7],[17,6,17,7],[17,12,17,13],[18,1,18,4],[18,6,18,7],[18,12,18,13],[19,1,19,4],[19,6,19,7],[19,12,19,13],[21,1,21,4],[20,12,20,13],[20,6,20,7],[21,6,21,7],[21,12,21,13]]}
[null,null,"گزارش امکانسنجی\nلیست ماشین آلات و تجهیزات فنی",null,null,null,null,null,null,null,null,null,"کد فرم : FR-06-12"]
[null,null,null,null,null,null,null,null,null,null,null,null,"شماره بازنگری : 00"]
[null,null,null,null,null,null,null,null,null,null,null,null,"صفحه .... از ...."]
[" نام سازنده :",null,null,null," نام محصول :",null,null,null,null,null," تاریخ تهیه :"]
["  شماره فنی :",null,null,null,"شماره تست پلن : ",null,null,null,null,null," شماره نقشه :"]
[]
["ردیف","نام ماشین آلات / تجهیزات / قالب",null,null,null,"سازنده","نام سازنده",null,"ظرفیت","وضعیت در سازمان",null,"شماره عملیات مرتبط مطابق با OPC","توضیحات"]
[null,null,null,null,null,null,null,null,null,"موجود می باشد","موجود نمی باشد"]
[]
[]
[]
[]
[]
[]
[]
[]
[]
[]
[]
[]
[]
[]
[]
["نام و سمت تهیه کننده :",null,null,null,null,null,"نام و سمت تایید کننده :"]

{"sheet":"ابزار تست و آزمون","index":10,"n_rows":25,"n_cols":13,"rows_kept":25,"cut":false,"hidden":false,"merged":[[3,0,3,4],[3,5,3,9],[3,10,3,13],[5,0,5,13],[4,0,4,4],[4,5,4,9],[4,10,4,13],[0,0,2,1],[0,2,2,11],[0,12,0,13],[1,12,1,13],[2,12,2,13],[6,5,6,8],[6,11,6,13],[8,1,8,3],[8,5,8,8],[8,11,8,13],[7,1,7,3],[7,5,7,8],[7,11,7,13],[6,1,6,3],[10,1,10,3],[10,5,10,8],[10,11,10,13],[9,1,9,3],[9,5,9,8],[9,11,9,13],[12,1,12,3],[12,5,12,8],[12,11,12,13],[11,1,11,3],[11,5,11,8],[11,11,11,13],[14,1,14,3],[14,5,14,8],[14,11,14,13],[13,1,13,3],[13,5,13,8],[13,11,13,13],[16,1,16,3],[16,5,16,8],[16,11,16,13],[15,1,15,3],[15,5,15,8],[15,11,15,13],[18,1,18,3],[18,5,18,8],[18,11,18,13],[17,1,17,3],[17,5,17,8],[17,11,17,13],[20,1,20,3],[20,5,20,8],[20,11,20,13],[19,1,19,3],[19,5,19,8],[19,11,19,13],[23,0,23,13],[24,0,27,6],[24,7,27,13],[21,1,21,3],[21,5,21,8],[21,11,21,13],[22,1,22,3],[22,5,22,8],[22,11,22,13]]}
[null,null,"گزارش امکانسنجی\nلیست ابزار و دستگاه های تست و آزمون",null,null,null,null,null,null,null,null,null,"کد فرم : FR-06-13"]
[null,null,null,null,null,null,null,null,null,null,null,null,"شماره بازنگری : 00"]
[null,null,null,null,null,null,null,null,null,null,null,null,"صفحه .... از ...."]
[" نام سازنده :",null,null,null,null," نام محصول :",null,null,null,null," تاریخ تهیه :"]
["  شماره فنی :",null,null,null,null,"شماره تست پلن : ",null,null,null,null," شماره نقشه :"]
[]
["ردیف","نام ابزار / دستگاه",null,null,"کد ابزار (دستگاه)","موارد کاربرد",null,null,null,"دقت دستگاه","دامنه اندازه گیری","توضیحات"]
[]
[]
[]
[]
[]
[]
[]
[]
[]
[]
[]
[]
[]
[]
[]
[]
[]
["نام و سمت تهیه کننده :",null,null,null,null,null,null,"نام و سمت تایید کننده :"]

{"sheet":"خدمات آزمایشگاهی","index":11,"n_rows":25,"n_cols":13,"rows_kept":25,"cut":false,"hidden":false,"merged":[[19,1,19,7],[20,1,20,7],[21,1,21,7],[22,1,22,7],[3,0,3,4],[3,5,3,9],[4,0,4,4],[4,5,4,9],[13,1,13,7],[14,1,14,7],[15,1,15,7],[16,1,16,7],[17,1,17,7],[18,1,18,7],[19,8,19,9],[17,8,17,9],[23,0,23,13],[24,0,27,6],[24,7,27,13],[6,1,6,7],[7,1,7,7],[8,1,8,7],[9,1,9,7],[10,1,10,7],[11,1,11,7],[12,1,12,7],[21,8,21,9],[21,10,21,11],[21,12,21,13],[22,8,22,9],[22,10,22,11],[22,12,22,13],[19,10,19,11],[19,12,19,13],[20,8,20,9],[20,10,20,11],[20,12,20,13],[17,10,17,11],[17,12,17,13],[18,8,18,9],[18,10,18,11],[18,12,18,13],[15,8,15,9],[15,10,15,11],[15,12,15,13],[16,8,16,9],[16,10,16,11],[16,12,16,13],[13,8,13,9],[13,10,13,11],[13,12,13,13],[14,8,14,9],[14,10,14,11],[14,12,14,13],[11,8,11,9],[11,10,11,11],[11,12,11,13],[12,8,12,9],[12,10,12,11],[12,12,12,13],[9,8,9,9],[9,10,9,11],[9,12,9,13],[10,8,10,9],[10,10,10,11],[10,12,10,13],[7,8,7,9],[7,10,7,11],[7,12,7,13],[8,8,8,9],[8,10,8,11],[8,12,8,13],[5,0,5,13],[6,8,6,9],[6,10,6,11],[6,12,6,13],[4,10,4,13],[3,10,3,13],[0,0,2,1],[0,2,2,11],[0,12,0,13],[1,12,1,13],[2,12,2,13]]}
[null,null,"گزارش امکانسنجی\nلیست استفاده از خدمات آزمایشگاهی",null,null,null,null,null,null,null,null,null,"کد فرم : FR-06-14"]
[null,null,null,null,null,null,null,null,null,null,null,null,"شماره بازنگری : 00"]
[null,null,null,null,null,null,null,null,null,null,null,null,"صفحه .... از ...."]
[" نام سازنده :",null,null,null,null," نام محصول :",null,null,null,null," تاریخ تهیه :"]
["  شماره فنی :",null,null,null,null,"شماره تست پلن : ",null,null,null,null," شماره نقشه :"]
[]
["ردیف","شرح آزمایش",null,null,null,null,null,null,"استاندارد\nمرتبط",null,"تجهیزات\nمورد نیاز",null,"محل انجام"]
[]
[]
[]
[]
[]
[]
[]
[]
[]
[]
[]
[]
[]
[]
[]
[]
[]
["نام و سمت تهیه کننده :",null,null,null,null,null,null,"نام و سمت تایید کننده :"]

{"sheet":"مغایرت نقشه، قطعه مرجع،شناسنامه","index":12,"n_rows":25,"n_cols":13,"rows_kept":25,"cut":false,"hidden":false,"merged":[[12,4,12,5],[6,1,6,3],[6,4,6,5],[22,1,22,3],[22,4,22,5],[21,1,21,3],[21,4,21,5],[20,10,20,11],[15,8,15,9],[15,10,15,11],[12,6,12,7],[12,8,12,9],[12,10,12,11],[20,12,20,13],[17,6,17,7],[17,8,17,9],[17,10,17,11],[17,12,17,13],[18,6,18,7],[18,8,18,9],[13,1,13,3],[13,4,13,5],[14,1,14,3],[14,4,14,5],[19,1,19,3],[19,4,19,5],[20,1,20,3],[20,4,20,5],[16,1,16,3],[16,4,16,5],[17,1,17,3],[17,4,17,5],[18,1,18,3],[18,4,18,5],[18,10,18,11],[18,12,18,13],[15,6,15,7],[23,0,23,13],[24,0,27,6],[24,7,27,13],[8,1,8,3],[8,4,8,5],[9,1,9,3],[9,4,9,5],[21,6,21,7],[21,8,21,9],[21,10,21,11],[21,12,21,13],[22,6,22,7],[22,8,22,9],[22,10,22,11],[22,12,22,13],[19,6,19,7],[19,8,19,9],[19,10,19,11],[19,12,19,13],[20,6,20,7],[20,8,20,9],[15,1,15,3],[15,4,15,5],[10,1,10,3],[15,12,15,13],[16,6,16,7],[16,8,16,9],[16,10,16,11],[16,12,16,13],[13,6,13,7],[13,8,13,9],[13,10,13,11],[13,12,13,13],[14,6,14,7],[14,8,14,9],[14,10,14,11],[14,12,14,13],[12,12,12,13],[11,6,11,7],[11,8,11,9],[11,10,11,11],[11,12,11,13],[6,10,6,11],[7,1,7,3],[7,4,7,5],[10,4,10,5],[11,1,11,3],[11,4,11,5],[9,6,9,7],[9,8,9,9],[9,10,9,11],[9,12,9,13],[10,6,10,7],[10,8,10,9],[10,10,10,11],[10,12,10,13],[8,6,8,7],[8,8,8,9],[8,10,8,11],[8,12,8,13],[12,1,12,3],[0,0,2,1],[0,2,2,11],[0,12,0,13],[1,12,1,13],[2,12,2,13],[7,6,7,7],[7,8,7,9],[7,10,7,11],[7,12,7,13],[5,0,5,13],[6,6,6,7],[6,8,6,9],[6,12,6,13],[3,0,3,4],[3,5,3,9],[3,10,3,13],[4,0,4,4],[4,5,4,9],[4,10,4,13]]}
[null,null,"گزارش امکانسنجی\nمغایرت نقشه، قطعه مرجع و شناسنامه",null,null,null,null,null,null,null,null,null,"کد فرم : FR-06-15"]
[null,null,null,null,null,null,null,null,null,null,null,null,"شماره بازنگری : 00"]
[null,null,null,null,null,null,null,null,null,null,null,null,"صفحه .... از ...."]
[" نام سازنده :",null,null,null,null," نام محصول :",null,null,null,null," تاریخ تهیه :"]
["  شماره فنی :",null,null,null,null,"شماره تست پلن : ",null,null,null,null," شماره نقشه :"]
[]
["ردیف","شرح پارامتر",null,null,"موقعیت پارامتر در نقشه / مدرک",null,"حد پذیرش نقشه / مدرک",null,"اندازه / مشخصه قطعه",null,"حد پذیرش پیشنهادی",null,"توضیحات"]
[]
[]
[]
[]
[]
[]
[]
[]
[]
[]
[]
[]
[]
[]
[]
[]
[]
["نام و سمت تهیه کننده :",null,null,null,null,null,null,"نام و سمت تایید کننده :"]

{"sheet":"مواد و قطعات","index":13,"n_rows":17,"n_cols":15,"rows_kept":17,"cut":false,"hidden":false,"merged":[[3,0,3,4],[3,5,3,9],[3,12,3,15],[4,0,4,4],[4,5,4,9],[4,12,4,15],[0,0,2,1],[0,2,2,13],[0,14,0,15],[1,14,1,15],[2,14,2,15],[5,0,5,15],[6,1,6,5],[6,6,6,7],[6,8,6,9],[6,10,6,11],[6,12,6,15],[8,1,8,5],[8,6,8,7],[8,8,8,9],[8,10,8,11],[8,12,8,15],[7,1,7,5],[7,6,7,7],[7,8,7,9],[7,10,7,11],[7,12,7,15],[10,1,10,5],[10,6,10,7],[10,8,10,9],[10,10,10,11],[10,12,10,15],[9,1,9,5],[9,6,9,7],[9,8,9,9],[9,10,9,11],[9,12,9,15],[12,12,12,15],[11,12,11,15],[14,12,14,15],[13,12,13,15],[11,1,11,5],[11,6,11,7],[11,8,11,9],[11,10,11,11],[13,1,13,5],[13,6,13,7],[13,8,13,9],[13,10,13,11],[12,1,12,5],[12,6,12,7],[12,8,12,9],[12,10,12,11],[15,0,15,15],[16,0,19,6],[16,7,19,15],[14,1,14,5],[14,6,14,7],[14,8,14,9],[14,10,14,11]]}
[null,null,"گزارش امکانسنجی\nلیست مواد و قطعات",null,null,null,null,null,null,null,null,null,null,null,"کد فرم : FR-06-16"]
[null,null,null,null,null,null,null,null,null,null,null,null,null,null,"شماره بازنگری : 00"]
[null,null,null,null,null,null,null,null,null,null,null,null,null,null,"صفحه .... از ...."]
[" نام سازنده :",null,null,null,null," نام محصول :",null,null,null,null,null,null," تاریخ تهیه :"]
["  شماره فنی :",null,null,null,null,"شماره تست پلن : ",null,null,null,null,null,null," شماره نقشه :"]
[]
["ردیف","نام کالا",null,null,null,null,"کد شناسایی",null,"مقدار مصرف",null,"تامین کننده",null,"محل تصویر"]
[]
[]
[]
[]
[]
[]
[]
[]
[]
["نام و سمت تهیه کننده :",null,null,null,null,null,null,"نام و سمت تایید کننده :"]

{"sheet":"منابع انسانی مورد نیاز","index":14,"n_rows":26,"n_cols":13,"rows_kept":26,"cut":false,"hidden":false,"merged":[[5,0,5,13],[0,0,2,1],[0,2,2,11],[0,12,0,13],[1,12,1,13],[2,12,2,13],[3,0,3,4],[3,5,3,9],[3,10,3,13],[4,0,4,4],[4,5,4,9],[4,10,4,13],[16,1,16,8],[24,0,24,13],[25,0,28,6],[25,7,28,13],[19,12,19,13],[20,12,20,13],[21,12,21,13],[22,1,22,8],[23,0,23,8],[22,12,22,13],[23,12,23,13],[17,1,17,8],[18,1,18,8],[19,1,19,8],[21,1,21,8],[16,12,16,13],[14,12,14,13],[15,12,15,13],[6,1,7,8],[15,1,15,8],[14,1,14,8],[6,9,6,11],[6,12,7,13],[17,12,17,13],[18,12,18,13],[20,1,20,8],[6,0,7,0],[10,12,10,13],[11,12,11,13],[12,12,12,13],[13,12,13,13],[10,1,10,8],[11,1,11,8],[12,1,12,8],[13,1,13,8],[8,1,8,8],[9,1,9,8],[8,12,8,13],[9,12,9,13]]}
[null,null,"گزارش امکانسنجی\nلیست منابع انسانی مورد نیاز",null,null,null,null,null,null,null,null,null,"کد فرم : FR-06-17"]
[null,null,null,null,null,null,null,null,null,null,null,null,"شماره بازنگری : 00"]
[null,null,null,null,null,null,null,null,null,null,null,null,"صفحه .... از ...."]
[" نام سازنده :",null,null,null,null," نام محصول :",null,null,null,null," تاریخ تهیه :"]
["  شماره فنی :",null,null,null,null,"شماره تست پلن : ",null,null,null,null," شماره نقشه :"]
[]
["ردیف","فرآیند / ایستگاه کاری",null,null,null,null,null,null,null,"سطح مهارت",null,null,"تعداد نفرات"]
[null,null,null,null,null,null,null,null,null,"متخصص","ماهر","ساده"]
[]
[]
[]
[]
[]
[]
[]
[]
[]
[]
[]
[]
[]
[]
[]
["مجموع"]
[]
["نام و سمت تهیه کننده :",null,null,null,null,null,null,"نام و سمت تایید کننده :"]

{"sheet":"بسته بندی","index":15,"n_rows":29,"n_cols":13,"rows_kept":29,"cut":false,"hidden":false,"merged":[[4,10,4,13],[8,7,8,13],[5,0,5,13],[0,0,2,1],[0,2,2,11],[0,12,0,13],[1,12,1,13],[2,12,2,13],[3,0,3,4],[3,5,3,9],[3,10,3,13],[4,0,4,4],[4,5,4,9],[18,7,18,13],[13,1,13,6],[13,7,13,13],[10,1,10,6],[10,7,10,13],[11,1,11,6],[11,7,11,13],[14,1,14,6],[14,7,14,13],[15,1,15,6],[15,7,15,13],[16,1,16,6],[16,7,16,13],[28,0,31,6],[28,7,31,13],[6,1,6,6],[6,7,6,13],[7,0,11,0],[12,0,12,13],[7,1,7,6],[7,7,7,13],[8,1,8,6],[19,0,21,0],[19,1,19,6],[19,7,19,13],[20,1,20,6],[20,7,20,13],[17,0,17,13],[18,1,18,6],[26,1,26,6],[26,7,26,13],[27,0,27,13],[9,1,9,6],[9,7,9,13],[21,1,21,6],[21,7,21,13],[22,0,22,13],[23,1,23,6],[23,7,23,13],[24,0,26,0],[24,1,24,6],[24,7,24,13],[25,1,25,6],[25,7,25,13],[14,0,16,0]]}
[null,null,"گزارش امکانسنجی\nلیست ملزومات بسته بندی / انبارش / بارگیری / حمل",null,null,null,null,null,null,null,null,null,"کد فرم : FR-06-18"]
[null,null,null,null,null,null,null,null,null,null,null,null,"شماره بازنگری : 00"]
[null,null,null,null,null,null,null,null,null,null,null,null,"صفحه .... از ...."]
[" نام سازنده :",null,null,null,null," نام محصول :",null,null,null,null," تاریخ تهیه :"]
["  شماره فنی :",null,null,null,null,"شماره تست پلن : ",null,null,null,null," شماره نقشه :"]
[]
["مرحله","مواد اولیه بسته بندی",null,null,null,null,null,"تجهیزات بسته بندی"]
["بسته بندی"]
[]
[]
[]
[]
[]
["مرحله","فضای انبارش",null,null,null,null,null,"تجهیزات انبارش"]
["انبارش"]
[]
[]
[]
["مرحله","تجهیزات بارگیری",null,null,null,null,null,"مالکیت تجهیزات"]
["بارگیری"]
[]
[]
[]
["مرحله","ماشین آلات حمل",null,null,null,null,null,"مالکیت ماشین آلات"]
["انبارش"]
[]
[]
[]
["نام و سمت تهیه کننده :",null,null,null,null,null,null,"نام و سمت تایید کننده :"]

{"sheet":"پیمانکاران فرعی","index":16,"n_rows":26,"n_cols":13,"rows_kept":26,"cut":false,"hidden":false,"merged":[[0,0,2,1],[0,2,2,11],[0,12,0,13],[1,12,1,13],[2,12,2,13],[3,0,3,4],[3,5,3,9],[3,10,3,13],[5,0,5,13],[6,1,6,5],[6,6,6,7],[6,12,6,13],[4,0,4,4],[4,5,4,9],[4,10,4,13],[7,1,7,5],[7,6,7,7],[7,12,7,13],[8,1,8,5],[8,6,8,7],[8,12,8,13],[9,1,9,5],[9,6,9,7],[9,12,9,13],[10,1,10,5],[10,6,10,7],[10,12,10,13],[11,1,11,5],[11,6,11,7],[11,12,11,13],[12,1,12,5],[12,6,12,7],[12,12,12,13],[15,12,15,13],[16,1,16,5],[16,6,16,7],[16,12,16,13],[13,1,13,5],[13,6,13,7],[13,12,13,13],[14,1,14,5],[14,6,14,7],[14,12,14,13],[18,1,18,5],[18,6,18,7],[18,12,18,13],[19,1,19,5],[19,6,19,7],[19,12,19,13],[20,1,20,5],[20,6,20,7],[20,12,20,13],[21,1,21,5],[21,6,21,7],[21,12,21,13],[24,0,24,13],[25,0,28,6],[25,7,28,13],[6,8,6,11],[7,8,7,11],[8,8,8,11],[9,8,9,11],[10,8,10,11],[11,8,11,11],[12,8,12,11],[22,1,22,5],[22,6,22,7],[22,12,22,13],[23,1,23,5],[23,6,23,7],[23,12,23,13],[17,1,17,5],[17,6,17,7],[17,8,17,11],[13,8,13,11],[14,8,14,11],[15,8,15,11],[16,8,16,11],[15,1,15,5],[15,6,15,7],[17,12,17,13],[20,8,20,11],[21,8,21,11],[22,8,22,11],[23,8,23,11],[18,8,18,11],[19,8,19,11]]}
[null,null,"گزارش امکانسنجی\nلیست پیمانکاران فرعی",null,null,null,null,null,null,null,null,null,"کد فرم : FR-06-19"]
[null,null,null,null,null,null,null,null,null,null,null,null,"شماره بازنگری : 00"]
[null,null,null,null,null,null,null,null,null,null,null,null,"صفحه .... از ...."]
[" نام سازنده :",null,null,null,null," نام محصول :",null,null,null,null," تاریخ تهیه :"]
["  شماره فنی :",null,null,null,null,"شماره تست پلن : ",null,null,null,null," شماره نقشه :"]
[]
["ردیف","نام پیمانکار",null,null,null,null,"زمینه همکاری",null,"آدرس",null,null,null,"تلفن"]
[]
[]
[]
[]
[]
[]
[]
[]
[]
[]
[]
[]
[]
[]
[]
[]
[]
[]
["نام و سمت تهیه کننده :",null,null,null,null,null,null,"نام و سمت تایید کننده :"]

{"sheet":"ظرفیت سنجی","index":17,"n_rows":26,"n_cols":13,"rows_kept":26,"cut":false,"hidden":false,"merged":[[0,0,2,1],[0,2,2,11],[0,12,0,13],[1,12,1,13],[2,12,2,13],[3,0,3,4],[3,5,3,9],[3,10,3,13],[7,10,7,13],[5,0,5,13],[6,1,6,5],[6,6,6,7],[6,8,6,9],[6,10,6,13],[7,1,7,5],[7,6,7,7],[4,0,4,4],[4,5,4,9],[4,10,4,13],[8,1,8,5],[8,6,8,7],[7,8,7,9],[11,10,11,13],[9,1,9,5],[9,6,9,7],[10,1,10,5],[10,6,10,7],[11,1,11,5],[11,6,11,7],[8,8,8,9],[8,10,8,13],[9,8,9,9],[9,10,9,13],[10,8,10,9],[10,10,10,13],[12,1,12,5],[12,6,12,7],[11,8,11,9],[15,10,15,13],[13,1,13,5],[13,6,13,7],[14,1,14,5],[14,6,14,7],[15,1,15,5],[15,6,15,7],[12,8,12,9],[12,10,12,13],[13,8,13,9],[13,10,13,13],[14,8,14,9],[14,10,14,13],[16,1,16,5],[16,6,16,7],[15,8,15,9],[19,8,19,9],[19,10,19,13],[17,1,17,5],[17,6,17,7],[18,1,18,5],[18,6,18,7],[16,8,16,9],[16,10,16,13],[17,8,17,9],[17,10,17,13],[18,8,18,9],[18,10,18,13],[21,1,21,5],[21,6,21,7],[22,1,22,5],[22,6,22,7],[19,1,19,5],[19,6,19,7],[20,1,20,5],[20,6,20,7],[23,6,23,7],[24,0,24,13],[25,0,28,6],[25,7,28,13],[23,8,23,9],[23,10,23,13],[23,0,23,5],[20,8,20,9],[20,10,20,13],[21,8,21,9],[21,10,21,13],[22,8,22,9],[22,10,22,13]]}
[null,null,"گزارش امکانسنجی\nفرم ظرفیت سنجی",null,null,null,null,null,null,null,null,null,"کد فرم : FR-06-20"]
[null,null,null,null,null,null,null,null,null,null,null,null,"شماره بازنگری : 00"]
[null,null,null,null,null,null,null,null,null,null,null,null,"صفحه .... از ...."]
[" نام سازنده :",null,null,null,null," نام محصول :",null,null,null,null," تاریخ تهیه :"]
["  شماره فنی :",null,null,null,null,"شماره تست پلن : ",null,null,null,null," شماره نقشه :"]
[]
["ردیف","نام فرآیند",null,null,null,null,"ظرفیت تولید\n(در یک شیفت)",null,"ظرفیت آزاد\n(در یک شیفت)",null,"توضیحات"]
[]
[]
[]
[]
[]
[]
[]
[]
[]
[]
[]
[]
[]
[]
[]
[]
["مجموع"]
[]
["نام و سمت تهیه کننده :",null,null,null,null,null,null,"نام و سمت تایید کننده :"]

{"sheet":"آنالیز ریسک","index":18,"n_rows":22,"n_cols":26,"rows_kept":22,"cut":false,"hidden":false,"merged":[[3,0,3,8],[3,9,3,17],[3,18,3,26],[4,0,4,8],[4,9,4,17],[14,24,14,26],[4,18,4,26],[11,21,11,23],[11,24,11,26],[10,24,10,26],[8,19,8,20],[8,21,8,23],[8,24,8,26],[12,24,12,26],[6,21,6,23],[6,17,6,18],[9,21,9,23],[9,24,9,26],[7,19,7,20],[7,21,7,23],[7,24,7,26],[5,0,5,26],[6,19,6,20],[10,15,10,16],[10,17,10,18],[10,19,10,20],[10,21,10,23],[11,1,11,4],[11,5,11,6],[11,7,11,9],[11,10,11,14],[11,15,11,16],[10,1,10,4],[10,5,10,6],[10,7,10,9],[10,10,10,14],[9,1,9,4],[9,5,9,6],[9,7,9,9],[9,10,9,14],[9,15,9,16],[9,17,9,18],[9,19,9,20],[8,1,8,4],[8,5,8,6],[8,7,8,9],[8,10,8,14],[8,15,8,16],[8,17,8,18],[16,19,16,20],[16,21,16,23],[12,1,12,4],[19,15,19,16],[19,17,19,18],[19,21,19,23],[19,24,19,26],[21,0,24,9],[21,10,24,26],[17,15,17,16],[17,17,17,18],[17,21,17,23],[17,24,17,26],[18,1,18,4],[18,5,18,6],[18,7,18,9],[18,10,18,14],[18,15,18,16],[18,17,18,18],[17,1,17,4],[17,5,17,6],[17,7,17,9],[17,10,17,14],[13,1,13,4],[12,15,12,16],[12,17,12,18],[12,21,12,23],[15,1,15,4],[15,5,15,6],[15,7,15,9],[15,10,15,14],[15,15,15,16],[15,17,15,18],[13,5,13,6],[13,7,13,9],[13,10,13,14],[13,15,13,16],[13,17,13,18],[13,19,13,20],[13,21,13,23],[14,15,14,16],[14,17,14,18],[14,19,14,20],[14,21,14,23],[7,15,7,16],[7,17,7,18],[20,0,20,26],[6,7,6,9],[6,10,6,14],[6,15,6,16],[6,24,6,26],[19,19,19,20],[19,1,19,4],[19,5,19,6],[19,7,19,9],[19,10,19,14],[18,19,18,20],[18,21,18,23],[18,24,18,26],[13,24,13,26],[14,1,14,4],[17,19,17,20],[16,1,16,4],[16,5,16,6],[16,7,16,9],[16,10,16,14],[16,15,16,16],[16,17,16,18],[0,0,2,1],[0,2,2,24],[0,25,0,26],[1,25,1,26],[2,25,2,26],[16,24,16,26],[11,17,11,18],[11,19,11,20],[14,5,14,6],[14,7,14,9],[14,10,14,14],[15,19,15,20],[15,21,15,23],[15,24,15,26],[12,19,12,20],[12,5,12,6],[12,7,12,9],[12,10,12,14],[6,5,6,6],[6,1,6,4],[7,1,7,4],[7,5,7,6],[7,7,7,9],[7,10,7,14]]}
[null,null,"گزارش امکانسنجی\nفرم آنالیز ریسک ساخت، تولید و تامین مواد و قطعات",null,null,null,null,null,null,null,null,null,null,null,null,null,null,null,null,null,null,null,null,null,null,"کد فرم : FR-06-21"]
[null,null,null,null,null,null,null,null,null,null,null,null,null,null,null,null,null,null,null,null,null,null,null,null,null,"شماره بازنگری : 00"]
[null,null,null,null,null,null,null,null,null,null,null,null,null,null,null,null,null,null,null,null,null,null,null,null,null,"صفحه .... از ...."]
[" نام سازنده :",null,null,null,null,null,null,null,null," نام محصول :",null,null,null,null,null,null,null,null," تاریخ تهیه :"]
["  شماره فنی :",null,null,null,null,null,null,null,null,"شماره تست پلن : ",null,null,null,null,null,null,null,null," شماره نقشه :"]
[]
["ردیف","ايراد - ريسك - اختلاف- مشكل\n(DEFECT/RISK/GAP/PROBLEM)",null,null,null,"دسته بندي\nريسك يا ايراد \nClassification Risks or efect (S, A, B, C)",null,"علت ایراد",null,null,"برنامه اقدام",null,null,null,null,"مسئول",null,"تاريخ پيش بيني جهت اجرا",null," تاريخ تاثير",null,"مستندات مرتبط و روش صحه گذاري",null,null,"مشاهدات"]
[]
[]
[]
[]
[]
[]
[]
[]
[]
[]
[]
[]
[]
[]
["نام و سمت تهیه کننده :",null,null,null,null,null,null,null,null,null,"نام و سمت تایید کننده :"]

{"sheet":"بررسی امکان سنجی","index":19,"n_rows":30,"n_cols":13,"rows_kept":30,"cut":false,"hidden":false,"merged":[[0,0,2,1],[0,2,2,11],[0,12,0,13],[1,12,1,13],[2,12,2,13],[6,0,7,0],[6,1,7,5],[6,6,6,8],[6,9,7,10],[6,11,7,13],[5,0,5,13],[3,0,3,4],[4,0,4,4],[3,11,3,13],[4,11,4,13],[8,1,8,5],[8,9,8,10],[8,11,8,13],[10,1,10,5],[10,9,10,10],[10,11,10,13],[9,1,9,5],[9,9,9,10],[9,11,9,13],[11,1,11,5],[11,9,11,10],[11,11,11,13],[12,1,12,5],[12,9,12,10],[12,11,12,13],[13,1,13,5],[13,9,13,10],[13,11,13,13],[14,1,14,5],[14,9,14,10],[14,11,14,13],[15,1,15,5],[15,9,15,10],[15,11,15,13],[16,1,16,5],[16,9,16,10],[16,11,16,13],[17,1,17,5],[17,9,17,10],[17,11,17,13],[18,1,18,5],[18,9,18,10],[18,11,18,13],[19,1,19,5],[19,9,19,10],[19,11,19,13],[20,1,20,5],[20,9,20,10],[20,11,20,13],[21,1,21,5],[21,9,21,10],[21,11,21,13],[22,1,22,5],[22,9,22,10],[22,11,22,13],[23,1,23,5],[23,9,23,10],[23,11,23,13],[24,1,24,5],[24,9,24,10],[24,11,24,13],[29,0,29,10],[29,11,29,13],[30,11,32,13],[30,2,32,3],[30,4,32,5],[30,6,32,8],[30,9,32,10],[30,0,32,1],[27,9,27,10],[27,11,27,13],[28,0,28,13],[27,0,27,5],[25,1,25,5],[25,9,25,10],[25,11,25,13],[26,1,26,5],[26,9,26,10],[26,11,26,13]]}
[null,null,"گزارش امکانسنجی\nفرم بررسی امکان سنجی",null,null,null,null,null,null,null,null,null,"کد فرم : FR-06-22"]
[null,null,null,null,null,null,null,null,null,null,null,null,"شماره بازنگری : 00"]
[null,null,null,null,null,null,null,null,null,null,null,null,"صفحه .... از ...."]
[" نام سازنده :",null,null,null,null," نام محصول :",null,null,null,null,null," تاریخ تهیه :"]
["  شماره فنی :",null,null,null,null,"شماره تست پلن : ",null,null,null,null,null," شماره نقشه :"]
[]
["ردیف","شرح",null,null,null,null,"نتیجه بررسی",null,null,"واحد\nبررسی کننده",null,"توضیحات"]
[null,null,null,null,null,null,"تایید","ناقص","مردود"]
[1,"لیست مستندات امکان سنجی",null,null,null,null,null,null,null,"واحد ساخت کادک"]
[2,"معرفی تامین کننده",null,null,null,null,null,null,null,"واحد ساخت کادک"]
[3,"معرفی محصول",null,null,null,null,null,null,null,"واحد ساخت کادک"]
[3,"فرم مشخصات مهم محصول",null,null,null,null,null,null,null,"واحد مهندسی و\nکیفیت کادک"]
[4,"فرم مشخصه های مهم فرآیند",null,null,null,null,null,null,null,"واحد مهندسی و\nکیفیت کادک"]
[5,"نحوه انجام بازرسی و کنترل قطعات و فرآیند",null,null,null,null,null,null,null,"واحد کیفیت کادک"]
[6,"نمودار فرآیند عملیات",null,null,null,null,null,null,null,"واحد کیفیت کادک"]
[7,"لیست سوابق مشکلات فنی و صدای مشتری",null,null,null,null,null,null,null,"واحد کیفیت کادک"]
[8,"تکنولوژی های مورد نیاز",null,null,null,null,null,null,null,"واحد مهندسی کادک"]
[9,"لیست ماشین آلات و تجهیزات فنی",null,null,null,null,null,null,null,"واحد مهندسی کادک"]
[10,"لیست ابزار و دستگاه های تست و آزمون",null,null,null,null,null,null,null,"واحد کیفیت کادک"]
[11,"لیست استفاده از خدمات آزمایشگاهی",null,null,null,null,null,null,null,"واحد کیفیت کادک"]
[12,"مغایرت نقشه با قطعه مرجع",null,null,null,null,null,null,null,"واحد مهندسی کادک"]
[13,"لیست مواد و قطعات",null,null,null,null,null,null,null,"واحد مهندسی کادک"]
[14,"منابع انسانی",null,null,null,null,null,null,null,"واحد مهندسی و\nکیفیت کادک"]
[15,"ملزومات بسته بندی / انبارش / بارگیری / حمل",null,null,null,null,null,null,null,"واحد مهندسی و\nکیفیت کادک"]
[16,"پیمانکاران فرعی",null,null,null,null,null,null,null,"واحد کیفیت کادک"]
[17,"ظرفیت سنجی",null,null,null,null,null,null,null,"واحد کیفیت کادک"]
[18,"آنالیز ریسک ساخت، تولید و تامین مواد و قطعات",null,null,null,null,null,null,null,"واحد کیفیت کادک"]
["نتیجه نهایی بررسی",null,null,null,null,null,null,null,null,"مدیر واحد ساخت\n..................................."]
[]
["نام، سمت و امضا اعضاء تیم CFT کادک",null,null,null,null,null,null,null,null,null,null,"نام، سمت و امضاء تایید کننده :"]

{"sheet":"خريد خدمات","index":20,"n_rows":24,"n_cols":10,"rows_kept":24,"cut":false,"hidden":true,"merged":[[0,0,0,9],[23,0,23,3],[1,2,1,3],[1,5,1,8],[23,4,23,7],[3,5,3,6]]}
["جدول محاسبه‌ي خريد خدمات در واحد قطعه"]
[null,"نام سازنده :",{"$f":"#REF!","v":{"$error":"#REF!"}},null,"نام قطعه:",{"$f":"#REF!","v":{"$error":"#REF!"}}]
[]
[null,"کد سازنده :",{"$f":"#REF!","v":{"$error":"#REF!"}},null,"شماره فني:",{"$f":"#REF!","v":{"$error":"#REF!"}}]
[]
[null,null,null,null,"تاريخ تهيه:",{"$f":"#REF!","v":{"$error":"#REF!"}}]
[]
["رديف","نام اجزاء قطعه","کد قطعه نيمه‌ساخته","شرح خدمات","منبع ارائه خدمات ","بهاي واحد خدمات(ريال)","واحد","ضريب مصرف\nخدمات","ضريب مصرف در قطعه نهائي","بهاي حق‌الزحمه خريد (ريال)"]
[1,null,null,null,null,null,null,null,null,{"$f":"IFERROR(F9*I9*H9,\"-\")","v":0}]
[2,null,null,null,null,null,null,null,null,{"$f":"IFERROR(F10*I10*H10,\"-\")","v":0}]
[3,null,null,null,null,null,null,null,null,0]
[4,null,null,null,null,null,null,null,null,0]
[5,null,null,null,null,null,null,null,null,0]
[6,null,null,null,null,null,null,null,null,0]
[7,null,null,null,null,null,null,null,null,0]
[8,null,null,null,null,null,null,null,null,0]
[9,null,null,null,null,null,null,null,null,0]
[10,null,null,null,null,null,null,null,null,0]
[11,null,null,null,null,null,null,null,null,0]
[12,null,null,null,null,null,null,null,null,0]
[13,null,null,null,null,null,null,null,null,0]
[14,null,null,null,null,null,null,null,null,0]
[15,null,null,null,null,null,null,null,null,0]
["توضيحات :",null,null,null,"براي اضافه كردن رديف جديد به آخرين سلول جدول رفته و با دكمه Tab رديف جديد را ايجاد كنيد.",null,null,null,"جمع:",{"$f":"SUM(J9:J23)","v":0}]

{"sheet":"ماشين آلات","index":21,"n_rows":32,"n_cols":13,"rows_kept":32,"cut":false,"hidden":true,"merged":[[31,0,32,9],[0,0,0,11],[1,2,1,4],[3,0,3,1],[5,3,5,4],[1,0,1,1],[1,6,1,11],[3,4,3,5],[3,6,3,8],[3,9,3,10]]}
["جدول کمکي ۲ - محاسبه نرخ ساعتي ماشين آلات "]
["نام سازنده:",null,{"$f":"#REF!","v":{"$error":"#REF!"}},null,null,"نام قطعه :",{"$f":"#REF!","v":{"$error":"#REF!"}}]
[]
["کد سازنده:",null,{"$f":"#REF!","v":{"$error":"#REF!"}},null,"شماره فني:",null,{"$f":"#REF!","v":{"$error":"#REF!"}},null,null,"تاريخ تهيه:",null,{"$f":"#REF!","v":{"$error":"#REF!"}}]
[]
["رديف","شرح ماشين آلات","کد ماشين‌آلات","سازنده",null,"تاريخ بهره‌برداري","تعداد روزهاي كاري در سال","ساعت كاركرد روزانه","كل ساعت كاركرد مفيد","بهاي واحد ماشين‌آلات (ريال)","عمر مفيد (سال)","استهلاك ساليانه","نرخ ساعتي ماشين (ريال)"]
["رديف","شرح ماشين آلات","کد ماشين آلات","کشور","شرکت","تاريخ بهره‌برداري","A","B","C=A*B","D","E","F=D/E","G=F/C"]
[1,null,null,null,null,null,null,null,{"$f":"Table5[[#This Row],[A]]*22.5","v":0},null,null,{"$f":"IFERROR(J8/K8,\"-\")","v":"-"},{"$f":"IFERROR(L8/I8,\"-\")","v":"-"}]
[2,null,null,null,null,null,null,null,{"$f":"Table5[[#This Row],[A]]*22.5","v":0},null,null,"-","-"]
[3,null,null,null,null,null,null,null,{"$f":"Table5[[#This Row],[A]]*22.5","v":0},null,null,"-","-"]
[4,null,null,null,null,null,null,null,{"$f":"Table5[[#This Row],[A]]*22.5","v":0},null,null,"-","-"]
[5,null,null,null,null,null,null,null,{"$f":"Table5[[#This Row],[A]]*22.5","v":0},null,null,"-","-"]
[6,null,null,null,null,null,null,null,{"$f":"Table5[[#This Row],[A]]*22.5","v":0},null,null,"-","-"]
[7,null,null,null,null,null,null,null,{"$f":"Table5[[#This Row],[A]]*22.5","v":0},null,null,"-","-"]
[8,null,null,null,null,null,null,null,{"$f":"Table5[[#This Row],[A]]*22.5","v":0},null,null,"-","-"]
[9,null,null,null,null,null,null,null,{"$f":"Table5[[#This Row],[A]]*22.5","v":0},null,null,"-","-"]
[10,null,null,null,null,null,null,null,{"$f":"Table5[[#This Row],[A]]*22.5","v":0},null,null,"-","-"]
[11,null,null,null,null,null,null,null,{"$f":"Table5[[#This Row],[A]]*22.5","v":0},null,null,"-","-"]
[12,null,null,null,null,null,null,null,{"$f":"Table5[[#This Row],[A]]*22.5","v":0},null,null,"-","-"]
[13,null,null,null,null,null,null,null,{"$f":"Table5[[#This Row],[A]]*22.5","v":0},null,null,"-","-"]
[14,null,null,null,null,null,null,null,{"$f":"Table5[[#This Row],[A]]*22.5","v":0},null,null,"-","-"]
[15,null,null,null,null,null,null,null,{"$f":"Table5[[#This Row],[A]]*22.5","v":0},null,null,"-","-"]
[16,null,null,null,null,null,null,null,{"$f":"Table5[[#This Row],[A]]*22.5","v":0},null,null,"-","-"]
[17,null,null,null,null,null,null,null,{"$f":"Table5[[#This Row],[A]]*22.5","v":0},null,null,"-","-"]
[18,null,null,null,null,null,null,null,{"$f":"Table5[[#This Row],[A]]*22.5","v":0},null,null,"-","-"]
[19,null,null,null,null,null,null,null,{"$f":"Table5[[#This Row],[A]]*22.5","v":0},null,null,"-","-"]
[20,null,null,null,null,null,null,null,{"$f":"Table5[[#This Row],[A]]*22.5","v":0},null,null,"-","-"]
[21,null,null,null,null,null,null,null,{"$f":"Table5[[#This Row],[A]]*22.5","v":0},null,null,"-","-"]
[22,null,null,null,null,null,null,null,{"$f":"Table5[[#This Row],[A]]*22.5","v":0},null,null,"-","-"]
[23,null,null,null,null,null,null,null,{"$f":"Table5[[#This Row],[A]]*22.5","v":0},null,null,"-","-"]
[24,null,null,null,null,null,null,null,{"$f":"Table5[[#This Row],[A]]*22.5","v":0},null,null,"-","-"]
["توضيحات :",null,null,null,null,null,null,null,null,null,null,null,{"$f":"SUM(M8:M31)","v":0}]

{"sheet":"قالب","index":22,"n_rows":35,"n_cols":15,"rows_kept":35,"cut":false,"hidden":true,"merged":[[28,13,28,14],[27,0,28,5],[28,11,28,12],[0,0,0,13],[1,0,1,1],[3,0,3,1],[3,6,3,8],[3,4,3,5],[1,12,1,13],[5,7,5,11],[1,6,1,10],[1,2,1,4]]}
["جدول محاسبه‌ي استهلاك قالب "]
["نام سازنده:",null,{"$f":"#REF!","v":{"$error":"#REF!"}},null,null,"نام قطعه:",{"$f":"#REF!","v":{"$error":"#REF!"}},null,null,null,null,"تاريخ تهيه:",{"$f":"#REF!","v":{"$error":"#REF!"}}]
[]
["کد سازنده:",null,{"$f":"#REF!","v":{"$error":"#REF!"}},null,"شماره فني:",null,{"$f":"#REF!","v":{"$error":"#REF!"}}]
[]
["رديف","نام اجزاء قطعه","كد فني قالب","نوع قالب","كد قالب","عمر مفيد (ضرب)","تعداد كويته","بهاي قالب (ريال)",null,null,null,null,"هزينه استهلاك هر قطعه ","ضريب مصرف","هزينه استهلاك هر قطعه"]
["رديف","نام اجزاء قطعه","كد فني قالب","نوع قالب","كد قالب","A","B","طراحي","مواد","ماشينكاري","ساير","جمع C","D=C/A*B","E","G=E*D"]
[1,"رینگ 14",null,null,null,null,null,null,0,null,0,{"$f":"SUM(H8:K8)","v":0},{"$f":"IFERROR(L8/(F8*G8),\"-\")","v":"-"},null,{"$f":"IFERROR(N8*M8,\"-\")","v":"-"}]
[2,null,null,null,null,null,null,null,null,null,null,{"$f":"SUM(H9:K9)","v":0},{"$f":"IFERROR(L9/(F9*G9),\"-\")","v":"-"},null,{"$f":"IFERROR(N9*M9,\"-\")","v":"-"}]
[3,null,null,null,null,null,null,null,null,null,null,{"$f":"SUM(H10:K10)","v":0},{"$f":"IFERROR(L10/(F10*G10),\"-\")","v":"-"},null,{"$f":"IFERROR(N10*M10,\"-\")","v":"-"}]
[4,null,null,null,null,null,null,null,null,null,null,0,"-",null,"-"]
[5,null,null,null,null,null,null,null,null,null,null,0,"-",null,"-"]
[6,null,null,null,null,null,null,null,null,null,null,0,"-",null,"-"]
[7,null,null,null,null,null,null,null,null,null,null,0,"-",null,"-"]
[8,null,null,null,null,null,null,null,null,null,null,0,"-",null,"-"]
[9,null,null,null,null,null,null,null,null,null,null,0,"-",null,"-"]
[10,null,null,null,null,null,null,null,null,null,null,0,"-",null,"-"]
[11,null,null,null,null,null,null,null,null,null,null,0,"-",null,"-"]
[12,null,null,null,null,null,null,null,null,null,null,0,"-",null,"-"]
[13,null,null,null,null,null,null,null,null,null,null,0,"-",null,"-"]
[14,null,null,null,null,null,null,null,null,null,null,0,"-",null,"-"]
[15,null,null,null,null,null,null,null,null,null,null,0,"-",null,"-"]
[16,null,null,null,null,null,null,null,null,null,null,{"$f":"SUM(H23:K23)","v":0},{"$f":"IFERROR(L23/(F23*G23),\"-\")","v":"-"},null,{"$f":"IFERROR(N23*M23,\"-\")","v":"-"}]
[17,null,null,null,null,null,null,null,null,null,null,{"$f":"SUM(H24:K24)","v":0},{"$f":"IFERROR(L24/(F24*G24),\"-\")","v":"-"},null,{"$f":"IFERROR(N24*M24,\"-\")","v":"-"}]
[18,null,null,null,null,null,null,null,null,null,null,{"$f":"SUM(H25:K25)","v":0},{"$f":"IFERROR(L25/(F25*G25),\"-\")","v":"-"},null,{"$f":"IFERROR(N25*M25,\"-\")","v":"-"}]
[19,null,null,null,null,null,null,null,null,null,null,{"$f":"SUM(H26:K26)","v":0},{"$f":"IFERROR(L26/(F26*G26),\"-\")","v":"-"},null,{"$f":"IFERROR(N26*M26,\"-\")","v":"-"}]
[20,null,null,null,null,null,null,null,null,null,null,{"$f":"SUM(H27:K27)","v":0},{"$f":"IFERROR(L27/(F27*G27),\"-\")","v":"-"},null,{"$f":"IFERROR(N27*M27,\"-\")","v":"-"}]
["توضيحات :",null,null,null,null,null,"جمع",{"$f":"SUM(H8:H27)","v":0},{"$f":"SUM(I8:I27)","v":0},{"$f":"SUM(J8:J27)","v":0},{"$f":"SUM(K8:K27)","v":0},{"$f":"SUM(L8:L27)","v":0},null,null,{"$f":"SUM(O8:O27)","v":0}]
[]
[]
[]
[]
[]
[]
[null,null,null,null,null,null,null,null,null,null,null,{"$f":"SUM(O9:O27)","v":0}]

{"sheet":"جدول صورت مالی","index":23,"n_rows":16,"n_cols":3,"rows_kept":16,"cut":false,"hidden":true,"merged":[[0,0,0,2]]}
["صورت هاي مالي  (ريال)"]
[null,"سال قبل","سال "]
["فروش سال"]
["فروش به ساپكو"]
["مواد مستقيم مصرفي"]
["دستمزد مستقيم"]
["سربار ساخت -عملياتي"]
["دستمزد غيرمستقيم ساخت- عملياتي"]
["استهلاك ساخت - عملياتي"]
["استهلاك ماشين آلات - عملياتي"]
["استهلاك قالب - عملياتي"]
["استهلاك ابراز - عملياتي"]
["حمل و نقل محصول"]
["بسته بندي محصول"]
["تعداد پرسنل مستقيم -نفر"]
["تعداد پرسنل غير مستقيم - نفر"]

{"sheet":"كتابخانه ليست ها","index":24,"n_rows":10,"n_cols":20,"rows_kept":10,"cut":false,"hidden":true,"merged":[[0,13,0,18]]}
["دلار","ساپكو/داخلي","كيلوگرم","ايرانخودرو","تريلر","RE8",1,"BC","اصل","خريد","فلزي","الكترونيك",40000,"محاسبه پالت در ماشين"]
["يورو","ساپكو/خارجي","گرم","ساپكو","كاميون","RE4",2,"EC","الحاقيه","تضمين","چوبي","پرسكاري",30000,null,"RE8","RE4","RE1","RC7","RC5","غيره"]
["درهم","سازنده/داخلي","عدد","سازنده","خاور","RE1",3,"EP",null,"تكوين","پلاستيكي","پلاستيك",40000,"تريلر",40,32,20,60,40]
["وون","سازنده/خارجي","ليتر",null,"كاميونت","RC7",4,"ES",null,null,"فاقد پالت","ريخته گري آلومينيوم",35000,"خاور",16,12,8,30,16]
["يوآن","ايرانخودرو","متر",null,"نيسان","RC5",5,"MS",null,null,null,"ريخته گري چدن",30000,"نيسان",4,2,2,4,4]
["روپيه",null,"قوطي",null,"وانت",null,null,"PC",null,null,null,"فورج",30000]
[null,null,"كپسول",null,"سواري",null,null,"SB",null,null,null,"لاستيك",40000]
[null,null,"شاخه",null,null,null,null,"TC",null,null,null,"ماشينكاري",35000]
[null,null,null,null,null,null,null,"TR",null,null,null,"متالورژي پودر",40000]
[null,null,null,null,null,null,null,null,null,null,null,"مونتاژ",40000]

{"sheet":"Material","index":25,"n_rows":320,"n_cols":10,"rows_kept":320,"cut":false,"hidden":true,"merged":[]}
["گروه مواد",null,null,"گروه مواد","نام مواد اوليه مصرفي",null,null,"گروه مواد","نام مواد اوليه مصرفي","گريد/نوع ماده اوليه"]
["الياژهاي الومينيم","List2",null,"الياژهاي الومينيم","اكسترود","List13",null,"الياژهاي الومينيم","اكسترود","6005A"]
["الياژهاي روي ( Zn )","List3",null,"الياژهاي الومينيم","داي كست","List14",null,"الياژهاي الومينيم","داي كست","AS9U3"]
["الياژهاي مس","List4",null,"الياژهاي الومينيم","ريژه ","List15",null,"الياژهاي الومينيم","داي كست","LM22"]
["پلاستيك","List5",null,"الياژهاي الومينيم","لوله","List16",null,"الياژهاي الومينيم","داي كست","LM24M"]
["پودر فلزي( متالورژي پودر)","List6",null,"الياژهاي الومينيم","مقاطع و پروفيل","List17",null,"الياژهاي الومينيم","داي كست","ساير"]
["چدن","List7",null,"الياژهاي الومينيم","ورق","List18",null,"الياژهاي الومينيم","ريژه ","AL(PURE)"]
["سایر","List8",null,"الياژهاي روي ( Zn )","زاماك 3","List19",null,"الياژهاي الومينيم","ريژه ","ALSI10MG"]
["سرب","List9",null,"الياژهاي روي ( Zn )","زاماك 5","List20",null,"الياژهاي الومينيم","ريژه ","AS5U3G"]
["فولاد","List10",null,"الياژهاي مس","ريختگي برنجي","List21",null,"الياژهاي الومينيم","ريژه ","AS7G03"]
["قلع","List11",null,"الياژهاي مس","ريختگي برنزي","List22",null,"الياژهاي الومينيم","ريژه ","AS7G06"]
["لاستيك","List12",null,"الياژهاي مس","ريختگي مس","List23",null,"الياژهاي الومينيم","ريژه ","AS7U3G"]
[null,null,null,"الياژهاي مس","لوله ","List24",null,"الياژهاي الومينيم","ريژه ","LM13"]
[null,null,null,"الياژهاي مس","مقاطع برنجي","List25",null,"الياژهاي الومينيم","ريژه ","LM21M"]
[null,null,null,"الياژهاي مس","مقاطع برنزي ساير عناصر","List26",null,"الياژهاي الومينيم","ريژه ","LM4"]
[null,null,null,"الياژهاي مس","مقاطع برنزي قلع دار","List27",null,"الياژهاي الومينيم","ريژه ","LM6"]
[null,null,null,"الياژهاي مس","مقاطع مسي","List28",null,"الياژهاي الومينيم","ريژه ","ساير"]
[null,null,null,"الياژهاي مس","ورق برنجي","List29",null,"الياژهاي الومينيم","لوله",1050]
[null,null,null,"الياژهاي مس","ورق برنزي","List30",null,"الياژهاي الومينيم","لوله","ساير"]
[null,null,null,"الياژهاي مس","ورق مسي","List31",null,"الياژهاي الومينيم","مقاطع و پروفيل"]
[null,null,null,"پلاستيك","ABS","List32",null,"الياژهاي الومينيم","ورق",1050]
[null,null,null,"پلاستيك","ABS/PC","List33",null,"الياژهاي الومينيم","ورق",4045]
[null,null,null,"پلاستيك","EPDM","List34",null,"الياژهاي الومينيم","ورق",7072]
[null,null,null,"پلاستيك","PA","List35",null,"الياژهاي الومينيم","ورق","3005H46"]
[null,null,null,"پلاستيك","PC","List36",null,"الياژهاي الومينيم","ورق","5052H11"]
[null,null,null,"پلاستيك","PE","List37",null,"الياژهاي الومينيم","ورق","8011H42"]
[null,null,null,"پلاستيك","POM","List38",null,"الياژهاي الومينيم","ورق","ساير"]
[null,null,null,"پلاستيك","PP","List39",null,"الياژهاي روي ( Zn )","زاماك 3"]
[null,null,null,"پودر فلزي( متالورژي پودر)","پايه اهن","List40",null,"الياژهاي روي ( Zn )","زاماك 5"]
[null,null,null,"پودر فلزي( متالورژي پودر)","پايه اهن الياژي","List41",null,"الياژهاي مس","ريختگي برنجي"]
[null,null,null,"پودر فلزي( متالورژي پودر)","مس","List42",null,"الياژهاي مس","ريختگي برنزي"]
[null,null,null,"چدن","خاكستري","List43",null,"الياژهاي مس","ريختگي مس"]
[null,null,null,"چدن","داكتيل","List44",null,"الياژهاي مس","لوله ","CUNI8SN9ZN3"]
[null,null,null,"سایر","الياف","List45",null,"الياژهاي مس","لوله ","CUZN25AL5MN4FE3"]
[null,null,null,"سایر","پارچه","List46",null,"الياژهاي مس","مقاطع برنجي"]
[null,null,null,"سایر","پنبه","List47",null,"الياژهاي مس","مقاطع برنزي ساير عناصر"]
[null,null,null,"سایر","چسب ","List48",null,"الياژهاي مس","مقاطع برنزي قلع دار"]
[null,null,null,"سایر","رزين","List49",null,"الياژهاي مس","مقاطع مسي"]
[null,null,null,"سایر","شيشه","List50",null,"الياژهاي مس","ورق برنجي"]
[null,null,null,"سایر","فوم","List51",null,"الياژهاي مس","ورق برنزي"]
[null,null,null,"سایر","قير","List52",null,"الياژهاي مس","ورق مسي"]
[null,null,null,"سایر","کاغذ","List53",null,"پلاستيك","ABS",707]
[null,null,null,"فولاد","لوله","List54",null,"پلاستيك","ABS",740]
[null,null,null,"فولاد","مقاطع و پروفيل","List55",null,"پلاستيك","ABS",750]
[null,null,null,"فولاد","ميلگرد و مفتول","List56",null,"پلاستيك","ABS",777]
[null,null,null,"فولاد","ورق و تسمه","List57",null,"پلاستيك","ABS","H2938"]
[null,null,null,"لاستيك","افزودني","List58",null,"پلاستيك","ABS","SD0150"]
[null,null,null,"لاستيك","پركننده","List59",null,"پلاستيك","ABS","XR 404"]
[null,null,null,"لاستيك","پلاستيك","List60",null,"پلاستيك","ABS/PC","HF5000"]
[null,null,null,"لاستيك","دوده","List61",null,"پلاستيك","ABS/PC","T45"]
[null,null,null,"لاستيك","روغن","List62",null,"پلاستيك","ABS/PC","T65"]
[null,null,null,"لاستيك","روكش","List63",null,"پلاستيك","ABS/PC","T85"]
[null,null,null,"لاستيك","شتاب دهنده","List64",null,"پلاستيك","EPDM","Kep 270"]
[null,null,null,"لاستيك","كائوچو مصنوعي","List65",null,"پلاستيك","EPDM","Vistalon 7500"]
[null,null,null,"لاستيك","كائوچوي بازيافتي","List66",null,"پلاستيك","PA","PA12"]
[null,null,null,"لاستيك","كائوچوي طبيعي","List67",null,"پلاستيك","PA","PA46"]
[null,null,null,"لاستيك","كائوچوي طبيعي بازيافتي","List68",null,"پلاستيك","PA","PA6"]
[null,null,null,"لاستيك","كائوچوي مصنوعي","List69",null,"پلاستيك","PA","PA6/66"]
[null,null,null,"لاستيك","كربنات","List70",null,"پلاستيك","PA","PA66"]
[null,null,null,"لاستيك","كمك فرآيند","List71",null,"پلاستيك","PC",1218]
[null,null,null,"لاستيك","مواد پخت","List72",null,"پلاستيك","PC","Makrolon 2607"]
[null,null,null,null,null,null,null,"پلاستيك","PC","Wonderlite PC-110"]
[null,null,null,null,null,null,null,"پلاستيك","PE","HDPE"]
[null,null,null,null,null,null,null,"پلاستيك","PE","LDPE"]
[null,null,null,null,null,null,null,"پلاستيك","PE","LLDPE"]
[null,null,null,null,null,null,null,"پلاستيك","POM","C9021"]
[null,null,null,null,null,null,null,"پلاستيك","POM","HI2"]
[null,null,null,null,null,null,null,"پلاستيك","POM","HI525"]
[null,null,null,null,null,null,null,"پلاستيك","POM","M 90"]
[null,null,null,null,null,null,null,"پلاستيك","POM","N2320"]
[null,null,null,null,null,null,null,"پلاستيك","PP","Copolymer"]
[null,null,null,null,null,null,null,"پلاستيك","PP","Homopolymer"]
[null,null,null,null,null,null,null,"پلاستيك","PP","PP+10%GF"]
[null,null,null,null,null,null,null,"پلاستيك","PP","PP+10%Talc"]
[null,null,null,null,null,null,null,"پلاستيك","PP","PP+20%GF"]
[null,null,null,null,null,null,null,"پلاستيك","PP","PP+20%Talc"]
[null,null,null,null,null,null,null,"پلاستيك","PP","PP+30%GF"]
[null,null,null,null,null,null,null,"پلاستيك","PP","PP+30%Talc"]
[null,null,null,null,null,null,null,"پودر فلزي( متالورژي پودر)","پايه اهن"]
[null,null,null,null,null,null,null,"پودر فلزي( متالورژي پودر)","پايه اهن الياژي"]
[null,null,null,null,null,null,null,"پودر فلزي( متالورژي پودر)","مس"]
[null,null,null,null,null,null,null,"چدن","خاكستري","B22/14"]
[null,null,null,null,null,null,null,"چدن","خاكستري","GG25"]
[null,null,null,null,null,null,null,"چدن","خاكستري","GJL250"]
[null,null,null,null,null,null,null,"چدن","خاكستري","GJL300"]
[null,null,null,null,null,null,null,"چدن","خاكستري","GL200"]
[null,null,null,null,null,null,null,"چدن","خاكستري","GL250"]
[null,null,null,null,null,null,null,"چدن","خاكستري","GLA1"]
[null,null,null,null,null,null,null,"چدن","خاكستري","GLB1"]
[null,null,null,null,null,null,null,"چدن","خاكستري","GLC1"]
[null,null,null,null,null,null,null,"چدن","خاكستري","GLJ2"]
[null,null,null,null,null,null,null,"چدن","خاكستري","GLJ3"]
[null,null,null,null,null,null,null,"چدن","خاكستري","GRADE-14"]
[null,null,null,null,null,null,null,"چدن","خاكستري","M/100/0004"]
[null,null,null,null,null,null,null,"چدن","خاكستري","M/100/0006"]
[null,null,null,null,null,null,null,"چدن","خاكستري","M/100/0008"]
[null,null,null,null,null,null,null,"چدن","خاكستري","M/100/1000"]
[null,null,null,null,null,null,null,"چدن","خاكستري","M/100/1500"]
[null,null,null,null,null,null,null,"چدن","خاكستري","M/100/2000"]
[null,null,null,null,null,null,null,"چدن","خاكستري","M/110/0003"]
[null,null,null,null,null,null,null,"چدن","خاكستري","MA5121"]
[null,null,null,null,null,null,null,"چدن","خاكستري","MA5140"]
[null,null,null,null,null,null,null,"چدن","خاكستري","MA5170"]
[null,null,null,null,null,null,null,"چدن","خاكستري","ساير"]
[null,null,null,null,null,null,null,"چدن","داكتيل","GGG40"]
[null,null,null,null,null,null,null,"چدن","داكتيل","GJS400"]
[null,null,null,null,null,null,null,"چدن","داكتيل","GJVSIMO4.5-0.6"]
[null,null,null,null,null,null,null,"چدن","داكتيل","GS400-12"]
[null,null,null,null,null,null,null,"چدن","داكتيل","GS700-2"]
[null,null,null,null,null,null,null,"چدن","داكتيل","GSA"]
[null,null,null,null,null,null,null,"چدن","داكتيل","GSB2"]
[null,null,null,null,null,null,null,"چدن","داكتيل","GSB2"]
[null,null,null,null,null,null,null,"چدن","داكتيل","GSD"]
[null,null,null,null,null,null,null,"چدن","داكتيل","GSD(WITHOUT MO)"]
[null,null,null,null,null,null,null,"چدن","داكتيل","M/100/0003"]
[null,null,null,null,null,null,null,"چدن","داكتيل","MA6330"]
[null,null,null,null,null,null,null,"چدن","داكتيل","ساير"]
[null,null,null,null,null,null,null,"سایر","الياف","ACRYLIC"]
[null,null,null,null,null,null,null,"سایر","الياف","GASKET"]
[null,null,null,null,null,null,null,"سایر","الياف","NONWOVEN"]
[null,null,null,null,null,null,null,"سایر","الياف","POLYESTER"]
[null,null,null,null,null,null,null,"سایر","الياف","PP"]
[null,null,null,null,null,null,null,"سایر","الياف","VF3110"]
[null,null,null,null,null,null,null,"سایر","پارچه","NONWOVEN"]
[null,null,null,null,null,null,null,"سایر","پارچه","POLYESTER"]
[null,null,null,null,null,null,null,"سایر","پنبه","پنبه"]
[null,null,null,null,null,null,null,"سایر","چسب ","چسب اکريليک"]
[null,null,null,null,null,null,null,"سایر","چسب ","چسب بيوتيل"]
[null,null,null,null,null,null,null,"سایر","رزين","A02/G2"]
[null,null,null,null,null,null,null,"سایر","رزين","ACRYLIC"]
[null,null,null,null,null,null,null,"سایر","رزين","EP-GFW"]
[null,null,null,null,null,null,null,"سایر","رزين","EVA"]
[null,null,null,null,null,null,null,"سایر","رزين","PHENOLIC RESIN"]
[null,null,null,null,null,null,null,"سایر","رزين","PVA"]
[null,null,null,null,null,null,null,"سایر","رزين","SI - P"]
[null,null,null,null,null,null,null,"سایر","رزين","WAX"]
[null,null,null,null,null,null,null,"سایر","شيشه","GLASS"]
[null,null,null,null,null,null,null,"سایر","فوم","EPDM"]
[null,null,null,null,null,null,null,"سایر","فوم","EPE"]
[null,null,null,null,null,null,null,"سایر","فوم","EPP"]
[null,null,null,null,null,null,null,"سایر","فوم","EVA"]
[null,null,null,null,null,null,null,"سایر","فوم","F326128"]
[null,null,null,null,null,null,null,"سایر","فوم","F336176"]
[null,null,null,null,null,null,null,"سایر","فوم","F524206"]
[null,null,null,null,null,null,null,"سایر","فوم","FWE522"]
[null,null,null,null,null,null,null,"سایر","فوم","PE"]
[null,null,null,null,null,null,null,"سایر","فوم","PEUR"]
[null,null,null,null,null,null,null,"سایر","فوم","PS-FOAM"]
[null,null,null,null,null,null,null,"سایر","فوم","PU"]
[null,null,null,null,null,null,null,"سایر","فوم","PUR-FOAM"]
[null,null,null,null,null,null,null,"سایر","فوم","PVC"]
[null,null,null,null,null,null,null,"سایر","فوم","PVC FOAM"]
[null,null,null,null,null,null,null,"سایر","قير","قير"]
[null,null,null,null,null,null,null,"سایر","کاغذ","كاغذ - مقوا"]
[null,null,null,null,null,null,null,"سایر","کاغذ","کاغذ سيليکون"]
[null,null,null,null,null,null,null,"سرب"]
[null,null,null,null,null,null,null,"فولاد","لوله","الومينايز"]
[null,null,null,null,null,null,null,"فولاد","لوله","بدون درز كربني"]
[null,null,null,null,null,null,null,"فولاد","لوله","درز جوش كربني"]
[null,null,null,null,null,null,null,"فولاد","لوله","درز جوش كشش سرد"]
[null,null,null,null,null,null,null,"فولاد","لوله","دولايه"]
[null,null,null,null,null,null,null,"فولاد","لوله","ساير"]
[null,null,null,null,null,null,null,"فولاد","لوله","ضدزنگ استنيتي(نگير)"]
[null,null,null,null,null,null,null,"فولاد","لوله","ضدزنگ فريتي(بگير)"]
[null,null,null,null,null,null,null,"فولاد","مقاطع و پروفيل","ساير"]
[null,null,null,null,null,null,null,"فولاد","مقاطع و پروفيل","قوطي"]
[null,null,null,null,null,null,null,"فولاد","مقاطع و پروفيل","ناوداني"]
[null,null,null,null,null,null,null,"فولاد","مقاطع و پروفيل","نبشي"]
[null,null,null,null,null,null,null,"فولاد","ميلگرد و مفتول","10B22"]
[null,null,null,null,null,null,null,"فولاد","ميلگرد و مفتول","10B38"]
[null,null,null,null,null,null,null,"فولاد","ميلگرد و مفتول","27CD4"]
[null,null,null,null,null,null,null,"فولاد","ميلگرد و مفتول","27MC5"]
[null,null,null,null,null,null,null,"فولاد","ميلگرد و مفتول","30MSV6"]
[null,null,null,null,null,null,null,"فولاد","ميلگرد و مفتول","45CTS"]
[null,null,null,null,null,null,null,"فولاد","ميلگرد و مفتول","45M5UA2"]
[null,null,null,null,null,null,null,"فولاد","ميلگرد و مفتول","55CRV4"]
[null,null,null,null,null,null,null,"فولاد","ميلگرد و مفتول","AF56UA2"]
[null,null,null,null,null,null,null,"فولاد","ميلگرد و مفتول","AF70"]
[null,null,null,null,null,null,null,"فولاد","ميلگرد و مفتول","CK22"]
[null,null,null,null,null,null,null,"فولاد","ميلگرد و مفتول","CK35"]
[null,null,null,null,null,null,null,"فولاد","ميلگرد و مفتول","CK45"]
[null,null,null,null,null,null,null,"فولاد","ميلگرد و مفتول","Peel&Polish"]
[null,null,null,null,null,null,null,"فولاد","ميلگرد و مفتول","XC42P"]
[null,null,null,null,null,null,null,"فولاد","ميلگرد و مفتول","XC70"]
[null,null,null,null,null,null,null,"فولاد","ميلگرد و مفتول","بلبرينگ"]
[null,null,null,null,null,null,null,"فولاد","ميلگرد و مفتول","خوش تراش"]
[null,null,null,null,null,null,null,"فولاد","ميلگرد و مفتول","ساختماني كربن متوسط"]
[null,null,null,null,null,null,null,"فولاد","ميلگرد و مفتول","ساختماني كم كربن"]
[null,null,null,null,null,null,null,"فولاد","ميلگرد و مفتول","ساير"]
[null,null,null,null,null,null,null,"فولاد","ميلگرد و مفتول","سخت كاري سطحي"]
[null,null,null,null,null,null,null,"فولاد","ميلگرد و مفتول","عمليات حرارتي شونده"]
[null,null,null,null,null,null,null,"فولاد","ميلگرد و مفتول","فنر الياژي"]
[null,null,null,null,null,null,null,"فولاد","ميلگرد و مفتول","فنر كربني"]
[null,null,null,null,null,null,null,"فولاد","ميلگرد و مفتول","ميكروالياژي"]
[null,null,null,null,null,null,null,"فولاد","ورق و تسمه","HLE بدون پوشش"]
[null,null,null,null,null,null,null,"فولاد","ورق و تسمه","HLE گالوانيزه"]
[null,null,null,null,null,null,null,"فولاد","ورق و تسمه","ساير"]
[null,null,null,null,null,null,null,"فولاد","ورق و تسمه","ضد زنگ استنيتي( نگير)"]
[null,null,null,null,null,null,null,"فولاد","ورق و تسمه","ضدزنگ فريتي( بگير)"]
[null,null,null,null,null,null,null,"فولاد","ورق و تسمه","فنر الياژي"]
[null,null,null,null,null,null,null,"فولاد","ورق و تسمه","فنر كربني"]
[null,null,null,null,null,null,null,"فولاد","ورق و تسمه","كربن متوسط"]
[null,null,null,null,null,null,null,"فولاد","ورق و تسمه","نورد سرد- الومينايز"]
[null,null,null,null,null,null,null,"فولاد","ورق و تسمه","نورد سرد- بدون پوشش"]
[null,null,null,null,null,null,null,"فولاد","ورق و تسمه","نورد سرد- گالوانيزه"]
[null,null,null,null,null,null,null,"فولاد","ورق و تسمه","نورد سرد-بدون پوشش خارجي"]
[null,null,null,null,null,null,null,"فولاد","ورق و تسمه","نورد گرم- بدون پوشش"]
[null,null,null,null,null,null,null,"فولاد","ورق و تسمه","نورد گرم-گالوانيزه"]
[null,null,null,null,null,null,null,"فولاد","ورق و تسمه","نوردسرد_گالوانيزه خارجي"]
[null,null,null,null,null,null,null,"قلع"]
[null,null,null,null,null,null,null,"لاستيك","افزودني",4010]
[null,null,null,null,null,null,null,"لاستيك","افزودني","(SOFTENER)  AKTIPLAST"]
[null,null,null,null,null,null,null,"لاستيك","افزودني","50P A-STRUKTOL"]
[null,null,null,null,null,null,null,"لاستيك","افزودني","6 PPD"]
[null,null,null,null,null,null,null,"لاستيك","افزودني","6PPD ORIPPD"]
[null,null,null,null,null,null,null,"لاستيك","افزودني","Adhesion premotor Resorcinor"]
[null,null,null,null,null,null,null,"لاستيك","افزودني","Antidegraadaant protectorwax"]
[null,null,null,null,null,null,null,"لاستيك","افزودني","Cobalt boro acrylate"]
[null,null,null,null,null,null,null,"لاستيك","افزودني","COHEDUR-A250"]
[null,null,null,null,null,null,null,"لاستيك","افزودني","IPPD"]
[null,null,null,null,null,null,null,"لاستيك","افزودني","M.C.W"]
[null,null,null,null,null,null,null,"لاستيك","افزودني","MIXLAND+ AND"]
[null,null,null,null,null,null,null,"لاستيك","افزودني","MIXLAND+ AZTF"]
[null,null,null,null,null,null,null,"لاستيك","افزودني","MIXLAND+ ETU80"]
[null,null,null,null,null,null,null,"لاستيك","افزودني","PARAFFIN  WAX (WAX-135)"]
[null,null,null,null,null,null,null,"لاستيك","افزودني","PEPTIZING AGENT"]
[null,null,null,null,null,null,null,"لاستيك","افزودني","REHNOGRAN-HEXA-80"]
[null,null,null,null,null,null,null,"لاستيك","افزودني","RHENOSLAB OBSH"]
[null,null,null,null,null,null,null,"لاستيك","افزودني","TACKIROL SMD -31181رزين"]
[null,null,null,null,null,null,null,"لاستيك","افزودني","TMQ"]
[null,null,null,null,null,null,null,"لاستيك","افزودني","WB16"]
[null,null,null,null,null,null,null,"لاستيك","افزودني","WB16-STRUKTOL"]
[null,null,null,null,null,null,null,"لاستيك","افزودني","Zinc Oxide"]
[null,null,null,null,null,null,null,"لاستيك","افزودني","ZINC OXIDE NEIGE"]
[null,null,null,null,null,null,null,"لاستيك","افزودني","ZNO"]
[null,null,null,null,null,null,null,"لاستيك","افزودني","استارات  روي راديال"]
[null,null,null,null,null,null,null,"لاستيك","افزودني","استراكتول"]
[null,null,null,null,null,null,null,"لاستيك","افزودني","اسيد اسنئاريك(S.T.A)"]
[null,null,null,null,null,null,null,"لاستيك","افزودني","اكسيد روي"]
[null,null,null,null,null,null,null,"لاستيك","افزودني","پارافین"]
[null,null,null,null,null,null,null,"لاستيك","افزودني","پپتایزر"]
[null,null,null,null,null,null,null,"لاستيك","افزودني","رزین"]
[null,null,null,null,null,null,null,"لاستيك","افزودني","رنودايو"]
[null,null,null,null,null,null,null,"لاستيك","پركننده"," سيليكا (VULKASILS)"]
[null,null,null,null,null,null,null,"لاستيك","پركننده","Silicium Dioxide"]
[null,null,null,null,null,null,null,"لاستيك","پركننده","الترازیل "]
[null,null,null,null,null,null,null,"لاستيك","پركننده","التراسیل"]
[null,null,null,null,null,null,null,"لاستيك","پركننده","پورتالک"]
[null,null,null,null,null,null,null,"لاستيك","پركننده","كائولين"]
[null,null,null,null,null,null,null,"لاستيك","پلاستيك","N-PVC"]
[null,null,null,null,null,null,null,"لاستيك","پلاستيك","شيرينگ PVC 35"]
[null,null,null,null,null,null,null,"لاستيك","پلاستيك","شيرينگ PVC 36"]
[null,null,null,null,null,null,null,"لاستيك","دوده","(N-330)دوده صنعتي"]
[null,null,null,null,null,null,null,"لاستيك","دوده","دوده "]
[null,null,null,null,null,null,null,"لاستيك","دوده","دوده صنعتي(N-375)"]
[null,null,null,null,null,null,null,"لاستيك","دوده","دوده صنعتي(N-550)"]
[null,null,null,null,null,null,null,"لاستيك","دوده","دوده صنعتي(N-660)"]
[null,null,null,null,null,null,null,"لاستيك","روغن","AROMATIC PROCESS OIL"]
[null,null,null,null,null,null,null,"لاستيك","روغن","Mixture  of  Aromatic and Aliphatic Hydrocarbons"]
[null,null,null,null,null,null,null,"لاستيك","روغن","روغن 290"]
[null,null,null,null,null,null,null,"لاستيك","روغن","روغن 840"]
[null,null,null,null,null,null,null,"لاستيك","روغن","روغن 845"]
[null,null,null,null,null,null,null,"لاستيك","روغن","روغن DOP"]
[null,null,null,null,null,null,null,"لاستيك","روغن","روغن استراکتول "]
[null,null,null,null,null,null,null,"لاستيك","روكش","كاور پلي استر"]
[null,null,null,null,null,null,null,"لاستيك","شتاب دهنده","(TBBS)NOCCLER  NS - P"]
[null,null,null,null,null,null,null,"لاستيك","شتاب دهنده","BUTYL PHENOL DISULFDE"]
[null,null,null,null,null,null,null,"لاستيك","شتاب دهنده","CBS"]
[null,null,null,null,null,null,null,"لاستيك","شتاب دهنده","CZ"]
[null,null,null,null,null,null,null,"لاستيك","شتاب دهنده","DPG"]
[null,null,null,null,null,null,null,"لاستيك","شتاب دهنده","DTPD"]
[null,null,null,null,null,null,null,"لاستيك","شتاب دهنده","Hexemethylene-tetramine"]
[null,null,null,null,null,null,null,"لاستيك","شتاب دهنده","MBS"]
[null,null,null,null,null,null,null,"لاستيك","شتاب دهنده","MBT"]
[null,null,null,null,null,null,null,"لاستيك","شتاب دهنده","MBTS"]
[null,null,null,null,null,null,null,"لاستيك","شتاب دهنده","MIXLAND+ MBT"]
[null,null,null,null,null,null,null,"لاستيك","شتاب دهنده","MIXLAND+ MBTS"]
[null,null,null,null,null,null,null,"لاستيك","شتاب دهنده","MIXLAND+ TDEC"]
[null,null,null,null,null,null,null,"لاستيك","شتاب دهنده","MIXLAND+ TMTD"]
[null,null,null,null,null,null,null,"لاستيك","شتاب دهنده","MIXLAND+ ZDBC"]
[null,null,null,null,null,null,null,"لاستيك","شتاب دهنده","MIXLAND+CBS"]
[null,null,null,null,null,null,null,"لاستيك","شتاب دهنده","pvi"]
[null,null,null,null,null,null,null,"لاستيك","شتاب دهنده","TBBS"]
[null,null,null,null,null,null,null,"لاستيك","شتاب دهنده","TMTD"]
[null,null,null,null,null,null,null,"لاستيك","كائوچو مصنوعي","BR 100"]
[null,null,null,null,null,null,null,"لاستيك","كائوچو مصنوعي","BRاراك"]
[null,null,null,null,null,null,null,"لاستيك","كائوچو مصنوعي","CR"]
[null,null,null,null,null,null,null,"لاستيك","كائوچو مصنوعي","EPDM"]
[null,null,null,null,null,null,null,"لاستيك","كائوچو مصنوعي","EPDM-BUNA CB25"]
[null,null,null,null,null,null,null,"لاستيك","كائوچو مصنوعي","ISPRENE RUBBER"]
[null,null,null,null,null,null,null,"لاستيك","كائوچو مصنوعي","NBR"]
[null,null,null,null,null,null,null,"لاستيك","كائوچو مصنوعي","SBR"]
[null,null,null,null,null,null,null,"لاستيك","كائوچو مصنوعي","SBR#1502"]
[null,null,null,null,null,null,null,"لاستيك","كائوچو مصنوعي","SBR#1507"]
[null,null,null,null,null,null,null,"لاستيك","كائوچو مصنوعي","SBR#1712"]
[null,null,null,null,null,null,null,"لاستيك","كائوچو مصنوعي","كلرو بيوتيل"]
[null,null,null,null,null,null,null,"لاستيك","كائوچو مصنوعي","كلروبيوتيل1240"]
[null,null,null,null,null,null,null,"لاستيك","كائوچوي بازيافتي","Butyl reclaim"]
[null,null,null,null,null,null,null,"لاستيك","كائوچوي طبيعي","(كائوچو طبيعي) S.M.R-20"]
[null,null,null,null,null,null,null,"لاستيك","كائوچوي طبيعي","EPG 5567"]
[null,null,null,null,null,null,null,"لاستيك","كائوچوي طبيعي","EPT K9720"]
[null,null,null,null,null,null,null,"لاستيك","كائوچوي طبيعي","Naturalrubber"]
[null,null,null,null,null,null,null,"لاستيك","كائوچوي طبيعي","NR"]
[null,null,null,null,null,null,null,"لاستيك","كائوچوي طبيعي","RSS"]
[null,null,null,null,null,null,null,"لاستيك","كائوچوي طبيعي","S.M.R-20"]
[null,null,null,null,null,null,null,"لاستيك","كائوچوي طبيعي بازيافتي","ريكليم رابرداخلي"]
[null,null,null,null,null,null,null,"لاستيك","كائوچوي مصنوعي","KELTAN 4703"]
[null,null,null,null,null,null,null,"لاستيك","كائوچوي مصنوعي","KELTAN 4903"]
[null,null,null,null,null,null,null,"لاستيك","كائوچوي مصنوعي","KEP 330"]
[null,null,null,null,null,null,null,"لاستيك","كائوچوي مصنوعي","KEP 370"]
[null,null,null,null,null,null,null,"لاستيك","كائوچوي مصنوعي","KEP1030F"]
[null,null,null,null,null,null,null,"لاستيك","كائوچوي مصنوعي","NBR/PVC"]
[null,null,null,null,null,null,null,"لاستيك","كربنات","كربنات كلسيم پوشش داده شده(كوتد مش800)"]
[null,null,null,null,null,null,null,"لاستيك","كمك فرآيند",".B.C- Collector DUST"]
[null,null,null,null,null,null,null,"لاستيك","مواد پخت","(%20 OIL)   گوگرد روغني"]
[null,null,null,null,null,null,null,"لاستيك","مواد پخت","RESIN-SP6700"]
[null,null,null,null,null,null,null,"لاستيك","مواد پخت","soluble sulfur"]
[null,null,null,null,null,null,null,"لاستيك","مواد پخت","SULPHUR-%20"]
[null,null,null,null,null,null,null,"لاستيك","مواد پخت","پراكسيد"]
[null,null,null,null,null,null,null,"لاستيك","مواد پخت","پودر گوگرد"]